Workbook

Sheet 1. LDC Information
B1: Sheet 1 Utility Information Sheet
B4: Name of LDC: | C4: Chapleau Public Utilities Corporation
B6: Licence Number: | C6: ED-2002-0528
B9: Date of Submission: | C9: 2010-10-29
A13: Contact Information
B14: Name: | C14: Marita Morin
B16: Title: | C16: Secretary Treasurer
B18: Phone Number: | C18: 705-864-0111
B20: E-Mail Address: | C20: chec@onlink.net

Sheet 2. Smart Meter Data
B1: Sheet 2. Smart Meter Capital Cost and Operational Expense Data
B3: Smart Meter Unit Installation Plan:
B4: assume calendar year installation | D4: 2006 | E4: 2007 | F4: 2008 | G4: 2009 | H4: 2010 | I4: 2011 | J4: Later | K4: Total
D5: Audited Actual | E5: Audited Actual | F5: Audited Actual | G5: Audited Actual | H5: Actual | I5: Forecasted | J5: Forecasted
D6: 0 | E6: 0 | F6: 0 | G6: 1088 | H6: 26 | I6: 0 | J6: 0 | K6: =SUM(D6:J6) -> 1114
B8: Planned number of General Service Less Than 50 kW smart meters | D8: 0 | E8: 0 | F8: 0 | G8: 67 | H8: 58 | I8: 36 | J8: 0 | K8: =SUM(D8:J8) -> 161
B10: Planned Meter Installation (Residential and Less Than 50 kW only) | D10: =SUM(D6,D8) -> 0 | E10: =SUM(E6,E8) -> 0 | F10: 0 | G10: 1155 | H10: 84 | I10: 36 | J10: 0 | K10: 1275
B12: Percentage of Completion | D12: =IF(ISERROR(SUM($D10:D10)/$K10),0,SUM($D10:D10)/$K10) -> 0 | E12: =IF(ISERROR(SUM($D10:E10)/$K10),0,SUM($D10:E10)/$K10) -> 0 | F12: =IF(ISERROR(SUM($D10:F10)/$K10),0,SUM($D10:F10)/$K10) -> 0 | G12: =IF(ISERROR(SUM($D10:G10)/$K10),0,SUM($D10:G10)/$K10) -> 0.9058823529 | H12: =IF(ISERROR(SUM($D10:H10)/$K10),0,SUM($D10:H10)/$K10) -> 0.9717647059 | I12: =IF(ISERROR(SUM($D10:I10)/$K10),0,SUM($D10:I10)/$K10) -> 1 | J12: =IF(ISERROR(SUM($D10:J10)/$K10),0,SUM($D10:J10)/$K10) -> 1
B14: Planned number of General Service Greater Than 50 kW smart meters | D14: 0 | F14: 0 | G14: 0 | H14: 0 | I14: 0 | J14: 0 | K14: =SUM(D14:J14) -> 0
B16: Planned / Actual Meter Installations | D16: =SUM(D10,D14) -> 0 | E16: 0 | F16: 0 | G16: 1155 | H16: 84 | I16: 36 | J16: 0 | K16: =SUM(D16:J16) -> 1275
B18: Other Unit Installation Plan:
B19: assume calendar year installation | D19: =D4 -> 2006 | E19: =E4 -> 2007 | F19: 2008 | G19: 2009 | H19: 2010 | I19: 2011 | J19: Later | K19: Total
D20: =D5 -> Audited Actual | E20: =E5 -> Audited Actual | F20: Audited Actual | G20: Audited Actual | H20: Actual | I20: Forecasted | J20: Forecasted
B21: Planned number of Collectors to be installed | D21: 0 | E21: 0 | F21: 0 | G21: 1 | H21: 0 | I21: 0 | J21: 0 | K21: =SUM(D21:J21) -> 1
B23: Planned number of Repeaters to be installed | D23: 0 | E23: 0 | F23: 0 | G23: 0 | H23: 0 | I23: 0 | J23: 0 | K23: =SUM(D23:J23) -> 0
B25: Other : Please specify
K26: =SUM(D26:J26) -> 0
K28: =SUM(D28:J28) -> 0
K30: =SUM(D30:J30) -> 0
K32: =SUM(D32:J32) -> 0
B35: Capital Costs
B36: 1.1 ADVANCED METERING COMMUNICATION DEVICE (AMCD) | C36: Asset Type
D37: =D19 -> 2006 | E37: =E19 -> 2007 | F37: 2008 | G37: 2009 | H37: 2010 | I37: 2011 | J37: Later | K37: Total
D38: =D20 -> Audited Actual | E38: =E20 -> Audited Actual | F38: Audited Actual | G38: Audited Actual | H38: Actual | I38: Forecasted | J38: Forecasted
B39: 1.1.1 Smart Meter | C39: Smart Meter | D39: 0 | E39: 0 | F39: 0 | G39: 106554.12 | H39: 10736.9 | I39: 9000 | J39: 0 | K39: =SUM(D39:J39) -> 126291.02
B40: may include new meters and modules, etc.
B41: 1.1.2 Installation Cost | C41: Smart Meter | D41: 0 | E41: 0 | F41: 0 | G41: 14719.33 | H41: 400 | I41: 400 | J41: 0 | K41: =SUM(D41:J41) -> 15519.33
B42: may include socket kits plus shipping, labour, benefits, vehicle, etc.
B43: 1.1.3a Workforce Automation Hardware | C43: Comp. Hard. | D43: 0 | E43: 0 | F43: 0 | G43: 4298.62 | H43: 0 | I43: 0 | J43: 0 | K43: =SUM(D43:J43) -> 4298.62
B44: may include fieldworker handhelds, barcode hardware, etc.
B45: 1.1.3b Workforce Automation Software | C45: Comp. Soft. | K45: =SUM(D45:J45) -> 0
B46: may include fieldworker handhelds, barcode hardware, etc.
B48: Total Advanced Metering Communication Device (AMCD) | D48: =SUM(D39,D41,D43,D45) -> 0 | E48: 0 | F48: 0 | G48: 125572.07 | H48: 11136.9 | I48: 9400 | J48: 0 | K48: 146108.97
B50: 1.2 ADVANCED METERING REGIONAL COLLECTOR (AMRC) (includes LAN)
D51: =D4 -> 2006 | E51: =E4 -> 2007 | F51: 2008 | G51: 2009 | H51: 2010 | I51: 2011 | J51: Later | K51: Total
D52: =D5 -> Audited Actual | E52: =E5 -> Audited Actual | F52: Audited Actual | G52: Audited Actual | H52: Actual | I52: Forecasted | J52: Forecasted
B53: 1.2.1 Collectors | C53: Smart Meter | D53: 0 | E53: 0 | F53: 0 | G53: 162420.49 | H53: 0 | I53: 0 | J53: 0 | K53: =SUM(D53:J53) -> 162420.49
B56: 1.2.2 Repeaters | C56: Smart Meter | D56: 0 | E56: 0 | F56: 0 | G56: 0 | H56: 0 | I56: 0 | J56: 0 | K56: =SUM(D56:J56) -> 0
B57: may include radio licence, etc.
B59: 1.2.3 Installation | C59: Smart Meter | D59: 0 | E59: 0 | F59: 0 | G59: 2654.29 | H59: 0 | I59: 0 | J59: 0 | K59: =SUM(D59:J59) -> 2654.29
B60: may include meter seals and rings, collector computer hardware, etc.
B62: Total Advanced Metering Regional Collector (AMRC) (includes LAN) | D62: =SUM(D53,D56,D59) -> 0 | E62: 0 | F62: 0 | G62: 165074.78 | H62: 0 | I62: 0 | J62: 0 | K62: 165074.78
B64: 1.3 ADVANCED METERING CONTROL COMPUTER (AMCC)
D65: =D4 -> 2006 | E65: =E4 -> 2007 | F65: 2008 | G65: 2009 | H65: 2010 | I65: 2011 | J65: Later | K65: Total
D66: =D5 -> Audited Actual | E66: =E5 -> Audited Actual | F66: Audited Actual | G66: Audited Actual | H66: Actual | I66: Forecasted | J66: Forecasted
B67: 1.3.1 Computer Hardware | C67: Comp. Hard. | K67: =SUM(D67:J67) -> 0
B69: 1.3.2 Computer Software | C69: Comp. Soft. | K69: =SUM(D69:J69) -> 0
B71: 1.3.3 Computer Software Licence & Installation (includes hardware & software) | C71: Comp. Soft. | K71: =SUM(D71:J71) -> 0
B72: may include AS/400 disc space, backup & recovery computer, UPS, etc
B73: Total Advanced Metering Control Computer (AMCC) | D73: =SUM(D67,D69,D71) -> 0 | E73: 0 | F73: 0 | G73: 0 | H73: 0 | I73: 0 | J73: 0 | K73: 0
B76: 1.4 WIDE AREA NETWORK (WAN) | D76: =D4 -> 2006 | E76: =E4 -> 2007 | F76: 2008 | G76: 2009 | H76: 2010 | I76: 2011 | J76: Later | K76: Total
D77: =D5 -> Audited Actual | E77: =E5 -> Audited Actual | F77: Audited Actual | G77: Audited Actual | H77: Actual | I77: Forecasted | J77: Forecasted
B78: 1.4.1 Activation Fees | C78: Tools & Equip | K78: =SUM(D78:J78) -> 0
B80: Total Wide Area Network (WAN) | D80: =SUM(D78) -> 0 | E80: 0 | F80: 0 | G80: 0 | H80: 0 | I80: 0 | J80: 0 | K80: 0
B83: 1.5 OTHER AMI CAPITAL COSTS RELATED TO MINIMUM FUNCTIONALITY | D83: =D4 -> 2006 | E83: =E4 -> 2007 | F83: 2008 | G83: 2009 | H83: 2010 | I83: 2011 | J83: Later | K83: Total
D84: =D5 -> Audited Actual | E84: =E5 -> Audited Actual | F84: Audited Actual | G84: Audited Actual | H84: Actual | I84: Forecasted | J84: Forecasted
B85: 1.5.1 Customer equipment (including repair of damaged equipment) | C85: Other Equip. | K85: =SUM(D85:J85) -> 0
B87: 1.5.2 AMI Interface to CIS | C87: Comp. Soft. | D87: 0 | E87: 0 | F87: 0 | G87: 3800 | H87: =7226.2+6000 -> 13226.2 | I87: 8000 | J87: 0 | K87: =SUM(D87:J87) -> 25026.2
B89: 1.5.3 Professional Fees | C89: Comp. Soft. | D89: 0 | E89: 0 | F89: 9429.52 | G89: 17620.77 | H89: =10912.21+2500 -> 13412.21 | I89: 5000 | J89: 0 | K89: =SUM(D89:J89) -> 45462.5
B91: 1.5.4 Integration | C91: Comp. Soft. | D91: 0 | E91: 0 | F91: 0 | G91: 0 | H91: 8100 | I91: 0 | J91: 0 | K91: =SUM(D91:J91) -> 8100
B93: 1.5.5 Program Management | C93: Comp. Soft. | D93: 0 | E93: 0 | F93: 0 | G93: 0 | H93: 0 | I93: 0 | J93: 0 | K93: =SUM(D93:J93) -> 0
B95: 1.5.6 Other AMI Capital | C95: Comp. Soft. | D95: 0 | E95: 0 | F95: 0 | G95: 2630.8 | H95: 4052.8 | I95: 0 | J95: 0 | K95: =SUM(D95:J95) -> 6683.6
B97: Total Other AMI Capital Costs Related To Minimum Functionality | D97: =SUM(D85,D87,D89,D91,D95,D93) -> 0 | E97: 0 | F97: 9429.52 | G97: 24051.57 | H97: 38791.21 | I97: 13000 | J97: 0 | K97: 85272.3
B99: Total Capital Costs | D99: =SUM(D48,D62,D80,D97,D73) -> 0 | E99: 0 | F99: 9429.52 | G99: 314698.42 | H99: 49928.11 | I99: 22400 | J99: 0 | K99: 396456.05
B101: O M & A
B102: 2.1 ADVANCED METERING COMMUNICATION DEVICE (AMCD)
D103: =D4 -> 2006 | E103: =E4 -> 2007 | F103: 2008 | G103: 2009 | H103: 2010 | I103: 2011 | J103: Later | K103: Total
D104: =D5 -> Audited Actual | E104: =E5 -> Audited Actual | F104: Audited Actual | G104: Audited Actual | H104: Actual | I104: Forecasted | J104: Forecasted
B105: 2.1.1 Maintenance | K105: =SUM(D105:J105) -> 0
B106: may include meter reverification costs, etc.
B107: Total Incremental AMI Operation Expenses | D107: =SUM(D105) -> 0 | E107: 0 | F107: 0 | G107: 0 | H107: 0 | I107: 0 | J107: 0 | K107: 0
B109: 2.2 ADVANCED METERING REGIONAL COLLECTOR (AMRC) (includes LAN)
B110: 2.2.1 Maintenance | K110: =SUM(D110:J110) -> 0
B113: Total Advanced Metering Regional Collector (AMRC) (includes LAN) | D113: =SUM(D110) -> 0 | E113: 0 | F113: 0 | G113: 0 | H113: 0 | I113: 0 | J113: 0 | K113: 0
B115: 2.3 ADVANCED METERING CONTROL COMPUTER (AMCC)
B116: 2.3.1 Hardware Maintenance | K116: =SUM(D116:J116) -> 0
B117: may include server support, etc
B119: 2.3.2 Software Maintenance | K119: =SUM(D119:J119) -> 0
B120: may include maintenance support, etc.
B122: Total Advanced Metering Control Computer (AMCC) | D122: =SUM(D116,D119) -> 0 | E122: 0 | F122: 0 | G122: 0 | H122: 0 | I122: 0 | J122: 0 | K122: 0
B124: 2.4 WIDE AREA NETWORK (WAN)
B126: 2.4.1 WIDE AREA NETWORK (WAN) | D126: 0 | E126: 0 | F126: 0 | G126: 18310.96 | H126: =21143.81+7500 -> 28643.81 | I126: 28600 | J126: 28600 | K126: =SUM(D126:J126) -> 104154.77
B127: may include serial to Ethernet hardware, etc.
B129: Total Incremental Other Operation Expenses | D129: =SUM(D126) -> 0 | E129: 0 | F129: 0 | G129: 18310.96 | H129: 28643.81 | I129: 28600 | J129: 28600 | K129: 104154.77
B131: 2.5 OTHER AMI OM&A COSTS RELATED TO MINIMUM FUNCTIONALITY
B132: 2.5.1 Business Process Redesign | K132: =SUM(D132:J132) -> 0
B134: 2.5.2 Customer Communication | K134: =SUM(D134:J134) -> 0
B135: may include project communication. etc.
B136: 2.5.3 Program Management | D136: 0 | E136: 0 | F136: 0 | G136: 0 | H136: =1381.19+460 -> 1841.19 | I136: 1900 | J136: 1900 | K136: =SUM(D136:J136) -> 5641.19
B138: 2.5.4 Change Management | K138: =SUM(D138:J138) -> 0
B139: may include training, etc.
B140: 2.5.5 Administration Cost | K140: =SUM(D140:J140) -> 0
B142: 2.5.6 Other AMI Expenses | K142: =SUM(D142:J142) -> 0
B145: Total 2.5 Other AMI OM&A Costs Related To Minimum Functionality | D145: =SUM(D132,D134,D136,D138,D140,D142) -> 0 | E145: 0 | F145: 0 | G145: 0 | H145: 1841.19 | I145: 1900 | J145: 1900 | K145: 5641.19
B147: Total O M & A Costs | D147: =SUM(D107,D113,D122,D129,D145) -> 0 | E147: 0 | F147: 0 | G147: 18310.96 | H147: 30485 | I147: 30500 | J147: 30500 | K147: 109795.96

Sheet 3. LDC Assumptions and Data
B1: Sheet 3. LDC Assumptions and Data
B4: Assumptions:
B5: 1. Planned meter installations occur evenly through the year.
B6: 2. Year assumed January to December
B7: 3. Amortization is straight line and has half year rule applied in first year
C10: 2006 EDR Data Information | D10: =D29 -> 2007 | E10: 2008 | F10: 2009 | G10: 2010 | H10: 2011 | I10: Later
B12: Rate Base
B14: Deemed Short Term Debt % | E14: 0.04 | F14: 0.04 | G14: 0.04 | H14: 0.04 | I14: 0.04
B15: Deemed Debt | C15: 0.5 | D15: 0.5 | E15: 0.493 | F15: 0.527 | G15: 0.56 | H15: 0.56 | I15: 0
B16: Deemed Equity | C16: =1-C15 -> 0.5 | D16: =1-D15 -> 0.5 | E16: =1-E15-E14 -> 0.467 | F16: =1-F15-F14 -> 0.433 | G16: =1-G15-G14 -> 0.4 | H16: =1-H15-H14 -> 0.4 | I16: =1-I15-I14 -> 0.96
B18: Deemed Short Term Debt Rate% | E18: 0.0447 | F18: 0.0113 | G18: 0.0113 | H18: 0.0113 | I18: 0.0113
B19: Weighted Debt Rate | C19: 0 | D19: 0 | E19: 0 | F19: 0 | G19: 0 | H19: 0 | I19: 0
B20: Proposed ROE | C20: 0.09 | D20: 0.09 | E20: 0.0857 | F20: 0.0801 | G20: 0.0801 | H20: 0.0801 | I20: 0.0801
B21: Weighted Average Cost of Capital | C21: =(C19*C15)+(C16*C20) -> 0.045 | D21: =(D19*D15)+(D16*D20) -> 0.045 | E21: =(E14*E18)+(E15*E19)+(E16*E20) -> 0.0418099 | F21: =(F14*F18)+(F15*F19)+(F16*F20) -> 0.0351353 | G21: =(G14*G18)+(G15*G19)+(G16*G20) -> 0.032492 | H21: =(H14*H18)+(H15*H19)+(H16*H20) -> 0.032492 | I21: =(I14*I18)+(I15*I19)+(I16*I20) -> 0.077348
B23: Working Capital Allowance % | C23: 0.15 | D23: 0.15 | E23: 0.15 | F23: 0.15 | G23: 0.15 | H23: 0.15 | I23: 0.15
B25: 2006 EDR Tax Rate
B26: Corporate Income Tax Rate | C26: 0.3612 | D26: 0.3612 | E26: 0.335 | F26: 0.33 | G26: 0.31 | H26: 0.2825 | I26: 0.2625
B29: Capital Data: | C29: ='2. Smart Meter Data'!D4 -> 2006 | D29: ='2. Smart Meter Data'!E4 -> 2007 | E29: ='2. Smart Meter Data'!F4 -> 2008 | F29: ='2. Smart Meter Data'!G4 -> 2009 | G29: ='2. Smart Meter Data'!H4 -> 2010 | H29: ='2. Smart Meter Data'!I4 -> 2011 | I29: ='2. Smart Meter Data'!J4 -> Later | J29: Total
C30: ='2. Smart Meter Data'!D5 -> Audited Actual | D30: ='2. Smart Meter Data'!E5 -> Audited Actual | E30: ='2. Smart Meter Data'!F5 -> Audited Actual | F30: ='2. Smart Meter Data'!G5 -> Audited Actual | G30: ='2. Smart Meter Data'!H5 -> Actual | H30: ='2. Smart Meter Data'!I5 -> Forecasted | I30: ='2. Smart Meter Data'!J5 -> Forecasted
B31: Smart Meter | C31: =SUMIF('2. Smart Meter Data'!$C:$J,"Smart Meter",'2. Smart Meter Data'!D:D) -> 0 | D31: =SUMIF('2. Smart Meter Data'!$C:$J,"Smart Meter",'2. Smart Meter Data'!E:E) -> 0 | E31: =SUMIF('2. Smart Meter Data'!$C:$J,"Smart Meter",'2. Smart Meter Data'!F:F) -> 0 | F31: =SUMIF('2. Smart Meter Data'!$C:$J,"Smart Meter",'2. Smart Meter Data'!G:G) -> 286348.23 | G31: =SUMIF('2. Smart Meter Data'!$C:$J,"Smart Meter",'2. Smart Meter Data'!H:H) -> 11136.9 | H31: =SUMIF('2. Smart Meter Data'!$C:$J,"Smart Meter",'2. Smart Meter Data'!I:I) -> 9400 | I31: =SUMIF('2. Smart Meter Data'!$C:$J,"Smart Meter",'2. Smart Meter Data'!J:J) -> 0 | J31: =SUM(C31:H31) -> 306885.13
B32: Computer Hardware | C32: =SUMIF('2. Smart Meter Data'!$C:$J,"Comp. Hard.",'2. Smart Meter Data'!D:D) -> 0 | D32: =SUMIF('2. Smart Meter Data'!$C:$J,"Comp. Hard.",'2. Smart Meter Data'!E:E) -> 0 | E32: =SUMIF('2. Smart Meter Data'!$C:$J,"Comp. Hard.",'2. Smart Meter Data'!F:F) -> 0 | F32: =SUMIF('2. Smart Meter Data'!$C:$J,"Comp. Hard.",'2. Smart Meter Data'!G:G) -> 4298.62 | G32: =SUMIF('2. Smart Meter Data'!$C:$J,"Comp. Hard.",'2. Smart Meter Data'!H:H) -> 0 | H32: =SUMIF('2. Smart Meter Data'!$C:$J,"Comp. Hard.",'2. Smart Meter Data'!I:I) -> 0 | I32: =SUMIF('2. Smart Meter Data'!$C:$J,"Comp. Hard.",'2. Smart Meter Data'!J:J) -> 0 | J32: =SUM(C32:H32) -> 4298.62
B33: Computer Software | C33: =SUMIF('2. Smart Meter Data'!$C:$J,"Comp. Soft.",'2. Smart Meter Data'!D:D) -> 0 | D33: =SUMIF('2. Smart Meter Data'!$C:$J,"Comp. Soft.",'2. Smart Meter Data'!E:E) -> 0 | E33: =SUMIF('2. Smart Meter Data'!$C:$J,"Comp. Soft.",'2. Smart Meter Data'!F:F) -> 9429.52 | F33: =SUMIF('2. Smart Meter Data'!$C:$J,"Comp. Soft.",'2. Smart Meter Data'!G:G) -> 24051.57 | G33: =SUMIF('2. Smart Meter Data'!$C:$J,"Comp. Soft.",'2. Smart Meter Data'!H:H) -> 38791.21 | H33: =SUMIF('2. Smart Meter Data'!$C:$J,"Comp. Soft.",'2. Smart Meter Data'!I:I) -> 13000 | I33: =SUMIF('2. Smart Meter Data'!$C:$J,"Comp. Soft.",'2. Smart Meter Data'!J:J) -> 0 | J33: =SUM(C33:H33) -> 85272.3
B34: Tools & Equipment | C34: =SUMIF('2. Smart Meter Data'!$C:$J,"Tools & Equip",'2. Smart Meter Data'!D:D) -> 0 | D34: =SUMIF('2. Smart Meter Data'!$C:$J,"Tools & Equip",'2. Smart Meter Data'!E:E) -> 0 | E34: =SUMIF('2. Smart Meter Data'!$C:$J,"Tools & Equip",'2. Smart Meter Data'!F:F) -> 0 | F34: =SUMIF('2. Smart Meter Data'!$C:$J,"Tools & Equip",'2. Smart Meter Data'!G:G) -> 0 | G34: =SUMIF('2. Smart Meter Data'!$C:$J,"Tools & Equip",'2. Smart Meter Data'!H:H) -> 0 | H34: =SUMIF('2. Smart Meter Data'!$C:$J,"Tools & Equip",'2. Smart Meter Data'!I:I) -> 0 | I34: =SUMIF('2. Smart Meter Data'!$C:$J,"Tools & Equip",'2. Smart Meter Data'!J:J) -> 0 | J34: =SUM(C34:H34) -> 0
B35: Other Equipment | C35: =SUMIF('2. Smart Meter Data'!$C:$J,"Other Equip.",'2. Smart Meter Data'!D:D) -> 0 | D35: =SUMIF('2. Smart Meter Data'!$C:$J,"Other Equip.",'2. Smart Meter Data'!E:E) -> 0 | E35: =SUMIF('2. Smart Meter Data'!$C:$J,"Other Equip.",'2. Smart Meter Data'!F:F) -> 0 | F35: =SUMIF('2. Smart Meter Data'!$C:$J,"Other Equip.",'2. Smart Meter Data'!G:G) -> 0 | G35: =SUMIF('2. Smart Meter Data'!$C:$J,"Other Equip.",'2. Smart Meter Data'!H:H) -> 0 | H35: =SUMIF('2. Smart Meter Data'!$C:$J,"Other Equip.",'2. Smart Meter Data'!I:I) -> 0 | I35: =SUMIF('2. Smart Meter Data'!$C:$J,"Other Equip.",'2. Smart Meter Data'!J:J) -> 0 | J35: =SUM(C35:H35) -> 0
B36: Total Capital Costs | C36: =SUM(C31:C33) -> 0 | D36: 0 | E36: 9429.52 | F36: 314698.42 | G36: 49928.11 | H36: 22400 | I36: 0 | J36: 396456.05
C37: ='2. Smart Meter Data'!D99-C36 -> 0 | D37: ='2. Smart Meter Data'!E99-D36 -> 0 | E37: ='2. Smart Meter Data'!F99-E36 -> 0 | F37: ='2. Smart Meter Data'!G99-F36 -> 0 | G37: ='2. Smart Meter Data'!H99-G36 -> 0 | H37: ='2. Smart Meter Data'!I99-H36 -> 0 | I37: ='2. Smart Meter Data'!J99-I36 -> 0 | J37: ='2. Smart Meter Data'!K99-J36 -> 0
C39: =C29 -> 2006 | D39: =D29 -> 2007 | E39: 2008 | F39: 2009 | G39: 2010 | H39: 2011 | I39: Later | J39: Total
B40: Operating Expense Data: | C40: =C30 -> Audited Actual | D40: =D30 -> Audited Actual | E40: Audited Actual | F40: Audited Actual | G40: Actual | H40: Forecasted | I40: Forecasted
B41: 2.1 Advanced Metering Communication Device (AMCD) | C41: ='2. Smart Meter Data'!D107 -> 0 | D41: ='2. Smart Meter Data'!E107 -> 0 | E41: ='2. Smart Meter Data'!F107 -> 0 | F41: ='2. Smart Meter Data'!G107 -> 0 | G41: ='2. Smart Meter Data'!H107 -> 0 | H41: ='2. Smart Meter Data'!I107 -> 0 | I41: ='2. Smart Meter Data'!J107 -> 0 | J41: =SUM(C41:H41) -> 0
B42: 2.2 Advanced Metering Regional Collector (AMRC) (includes LAN) | C42: ='2. Smart Meter Data'!D113 -> 0 | D42: ='2. Smart Meter Data'!E113 -> 0 | E42: ='2. Smart Meter Data'!F113 -> 0 | F42: ='2. Smart Meter Data'!G113 -> 0 | G42: ='2. Smart Meter Data'!H113 -> 0 | H42: ='2. Smart Meter Data'!I113 -> 0 | I42: ='2. Smart Meter Data'!J113 -> 0 | J42: =SUM(C42:H42) -> 0
B43: 2.3 Advanced Metering Control Computer (AMCC) | C43: ='2. Smart Meter Data'!D122 -> 0 | D43: ='2. Smart Meter Data'!E122 -> 0 | E43: ='2. Smart Meter Data'!F122 -> 0 | F43: ='2. Smart Meter Data'!G122 -> 0 | G43: ='2. Smart Meter Data'!H122 -> 0 | H43: ='2. Smart Meter Data'!I122 -> 0 | I43: ='2. Smart Meter Data'!J122 -> 0 | J43: =SUM(C43:H43) -> 0
B44: 2.4 Wide Area Network (WAN) | C44: ='2. Smart Meter Data'!D129 -> 0 | D44: ='2. Smart Meter Data'!E129 -> 0 | E44: ='2. Smart Meter Data'!F129 -> 0 | F44: ='2. Smart Meter Data'!G129 -> 18310.96 | G44: ='2. Smart Meter Data'!H129 -> 28643.81 | H44: ='2. Smart Meter Data'!I129 -> 28600 | I44: ='2. Smart Meter Data'!J129 -> 28600 | J44: =SUM(C44:H44) -> 75554.77
B45: 2.5 Other AMI OM&A Costs Related To Minimum Functionality | C45: ='2. Smart Meter Data'!D145 -> 0 | D45: ='2. Smart Meter Data'!E145 -> 0 | E45: ='2. Smart Meter Data'!F145 -> 0 | F45: ='2. Smart Meter Data'!G145 -> 0 | G45: ='2. Smart Meter Data'!H145 -> 1841.19 | H45: ='2. Smart Meter Data'!I145 -> 1900 | I45: ='2. Smart Meter Data'!J145 -> 1900 | J45: =SUM(C45:H45) -> 3741.19
B46: Total O M & A Costs | C46: =SUM(C41:C45) -> 0 | D46: 0 | E46: 0 | F46: 18310.96 | G46: 30485 | H46: 30500 | I46: 30500 | J46: 79295.96
C47: ='2. Smart Meter Data'!D147-C46 -> 0 | D47: ='2. Smart Meter Data'!E147-D46 -> 0 | E47: ='2. Smart Meter Data'!F147-E46 -> 0 | F47: ='2. Smart Meter Data'!G147-F46 -> 0 | G47: ='2. Smart Meter Data'!H147-G46 -> 0 | H47: ='2. Smart Meter Data'!I147-H46 -> 0 | I47: ='2. Smart Meter Data'!J147-I46 -> 0 | J47: ='2. Smart Meter Data'!K147-J46 -> 30500
B49: Per Meter Cost Split: | C49: Per Meter | D49: Installed | E49: Investment | F49: % of Invest
B50: Smart meter including installation | C50: =IF(ISERROR(E50/D50),0,E50/D50) -> 240.6942196 | D50: ='2. Smart Meter Data'!K10 -> 1275 | E50: =J31 -> 306885.13 | F50: =IF(ISERROR(E50/$E$56),0,E50/$E$56) -> 0.645052724
B51: Computer Hardware Costs | C51: 3.371466667 | D51: =D50 -> 1275 | E51: =J32 -> 4298.62 | F51: 0.009035421626
B52: Computer Software Costs | C52: 66.88023529 | D52: =D51 -> 1275 | E52: =J33 -> 85272.3 | F52: 0.1792368675
B53: Tools & Equipment | C53: 0 | D53: =D52 -> 1275 | E53: =J34 -> 0 | F53: 0
B54: Other Equipment | C54: 0 | D54: =D53 -> 1275 | E54: =J35 -> 0 | F54: 0
B55: Smart meter incremental operating expenses | C55: 62.1929098 | D55: =D52 -> 1275 | E55: =J46 -> 79295.96 | F55: 0.1666749868
B56: Total Smart Meter Capital Costs per meter | C56: =SUM(C50:C55) -> 373.1388314 | E56: =SUM(E50:E55) -> 475752.01 | F56: =SUM(F50:F55) -> 1
C58: =C39 -> 2006 | D58: =D39 -> 2007 | E58: 2008 | F58: 2009 | G58: 2010 | H58: 2011 | I58: Later
B59: Depreciation Rates | C59: =C40 -> Audited Actual | D59: =D40 -> Audited Actual | E59: Audited Actual | F59: Audited Actual | G59: Actual | H59: Forecasted | I59: Forecasted
B60: Smart Meter (years) | C60: 15 | D60: 15 | E60: 15 | F60: 15 | G60: 15 | H60: 15 | I60: 15
B61: Computer Hardware (years) | C61: 10 | D61: 10 | E61: 10 | F61: 10 | G61: 10 | H61: 10 | I61: 10
B62: Computer Software (years) | C62: 5 | D62: 5 | E62: 5 | F62: 5 | G62: 5 | H62: 5 | I62: 5
B63: Tools & Equipment (years) | C63: 10 | D63: 10 | E63: 10 | F63: 10 | G63: 10 | H63: 10 | I63: 10
B64: Other Equipment (years) | C64: 10 | D64: 10 | E64: 10 | F64: 10 | G64: 10 | H64: 10 | I64: 10
C66: =C58 -> 2006 | D66: =D58 -> 2007 | E66: 2008 | F66: 2009 | G66: 2010 | H66: 2011 | I66: Later
B67: CCA Rates | C67: =C59 -> Audited Actual | D67: =D59 -> Audited Actual | E67: Audited Actual | F67: Audited Actual | G67: Actual | H67: Forecasted | I67: Forecasted
B68: CCA Class | C68: 47 | D68: 47 | E68: 47 | F68: 47 | G68: 47 | H68: 47 | I68: 47
B69: Smart Meter | C69: 0.08 | D69: 0.08 | E69: 0.08 | F69: 0.08 | G69: 0.08 | H69: 0.08 | I69: 0.08
B71: CCA Class | C71: 45 | D71: 50 | E71: 50 | F71: 50 | G71: 50 | H71: 50 | I71: 50
B72: Computer Equipment | C72: 0.45 | D72: 0.55 | E72: 0.55 | F72: 0.55 | G72: 0.55 | H72: 0.55 | I72: 0.55
B74: CCA Class | C74: 8 | D74: 8 | E74: 8 | F74: 8 | G74: 8 | H74: 8 | I74: 8
B75: General Equipment | C75: 0.2 | D75: 0.2 | E75: 0.2 | F75: 0.2 | G75: 0.2 | H75: 0.2 | I75: 0.2

Sheet 4. Smart Meter Rev Req
B1: Sheet 4. Smart Meter Rev Req Calc
A4: Smart Meter Revenue Requirement Calculation
B6: Average Asset Values | C6: ='2. Smart Meter Data'!D4 -> 2006 | F6: ='2. Smart Meter Data'!E4 -> 2007 | I6: ='2. Smart Meter Data'!F4 -> 2008 | L6: ='2. Smart Meter Data'!G4 -> 2009 | O6: ='2. Smart Meter Data'!H4 -> 2010 | R6: ='2. Smart Meter Data'!I4 -> 2011 | U6: ='2. Smart Meter Data'!J4 -> Later
C7: ='2. Smart Meter Data'!D5 -> Audited Actual | F7: ='2. Smart Meter Data'!E5 -> Audited Actual | I7: ='2. Smart Meter Data'!F5 -> Audited Actual | L7: ='2. Smart Meter Data'!G5 -> Audited Actual | O7: ='2. Smart Meter Data'!H5 -> Actual | R7: ='2. Smart Meter Data'!I5 -> Forecasted | U7: ='2. Smart Meter Data'!J5 -> Forecasted
B8: Net Fixed Assets Smart Meters | C8: ='6. Avg Nt Fix Ass &UCC'!C18 -> 0 | F8: ='6. Avg Nt Fix Ass &UCC'!D18 -> 0 | I8: ='6. Avg Nt Fix Ass &UCC'!E18 -> 0 | L8: ='6. Avg Nt Fix Ass &UCC'!F18 -> 138401.6445 | O8: ='6. Avg Nt Fix Ass &UCC'!G18 -> 272641.183 | R8: ='6. Avg Nt Fix Ass &UCC'!H18 -> 263106.2393 | U8: ='6. Avg Nt Fix Ass &UCC'!M18 -> 0
B9: Net Fixed Assets Computer Hardware | C9: ='6. Avg Nt Fix Ass &UCC'!C33 -> 0 | F9: ='6. Avg Nt Fix Ass &UCC'!D33 -> 0 | I9: ='6. Avg Nt Fix Ass &UCC'!E33 -> 0 | L9: ='6. Avg Nt Fix Ass &UCC'!F33 -> 2041.8445 | O9: ='6. Avg Nt Fix Ass &UCC'!G33 -> 3868.758 | R9: ='6. Avg Nt Fix Ass &UCC'!H33 -> 3438.896 | U9: ='6. Avg Nt Fix Ass &UCC'!I33 -> 0
B10: Net Fixed Assets Computer Software | C10: ='6. Avg Nt Fix Ass &UCC'!C48 -> 0 | F10: ='6. Avg Nt Fix Ass &UCC'!D48 -> 0 | I10: ='6. Avg Nt Fix Ass &UCC'!E48 -> 4243.284 | L10: ='6. Avg Nt Fix Ass &UCC'!F48 -> 18366.8225 | O10: ='6. Avg Nt Fix Ass &UCC'!G48 -> 42355.0125 | R10: ='6. Avg Nt Fix Ass &UCC'!H48 -> 55085.718 | U10: ='6. Avg Nt Fix Ass &UCC'!I48 -> 0
B11: Net Fixed Assets Tools & Equipment | C11: ='6. Avg Nt Fix Ass &UCC'!C63 -> 0 | F11: ='6. Avg Nt Fix Ass &UCC'!D63 -> 0 | I11: ='6. Avg Nt Fix Ass &UCC'!E63 -> 0 | L11: ='6. Avg Nt Fix Ass &UCC'!F63 -> 0 | O11: ='6. Avg Nt Fix Ass &UCC'!G63 -> 0 | R11: ='6. Avg Nt Fix Ass &UCC'!H63 -> 0 | U11: ='6. Avg Nt Fix Ass &UCC'!I63 -> 0
B12: Net Fixed Assets Other Equipment | C12: ='6. Avg Nt Fix Ass &UCC'!C78 -> 0 | F12: ='6. Avg Nt Fix Ass &UCC'!D78 -> 0 | I12: ='6. Avg Nt Fix Ass &UCC'!E78 -> 0 | L12: ='6. Avg Nt Fix Ass &UCC'!F78 -> 0 | O12: ='6. Avg Nt Fix Ass &UCC'!G78 -> 0 | R12: ='6. Avg Nt Fix Ass &UCC'!H78 -> 0 | U12: ='6. Avg Nt Fix Ass &UCC'!I78 -> 0
B13: Total Net Fixed Assets | C13: =SUM(C8:C12) -> 0 | D13: =C13 -> 0 | F13: =SUM(F8:F12) -> 0 | G13: =F13 -> 0 | I13: =SUM(I8:I12) -> 4243.284 | J13: =I13 -> 4243.284 | L13: =SUM(L8:L12) -> 158810.3115 | M13: =L13 -> 158810.3115 | O13: =SUM(O8:O12) -> 318864.9535 | P13: =O13 -> 318864.9535 | R13: =SUM(R8:R12) -> 321630.8533 | S13: =R13 -> 321630.8533 | U13: =SUM(U8:U12) -> 0 | V13: =U13 -> 0
B15: Working Capital
B16: Operation Expense | C16: =E33 -> 0 | F16: =H33 -> 0 | I16: =K33 -> 0 | L16: =N33 -> 18310.96 | O16: =Q33 -> 30485 | R16: =T33 -> 30500 | U16: =W33 -> 30500
B17: ="Working Capital %" -> Working Capital % | C17: =C16*'3. LDC Assumptions and Data'!$C$23 -> 0 | D17: =C17 -> 0 | F17: =F16*'3. LDC Assumptions and Data'!$D$23 -> 0 | G17: =F17 -> 0 | I17: =I16*'3. LDC Assumptions and Data'!$E$23 -> 0 | J17: =I17 -> 0 | L17: =L16*'3. LDC Assumptions and Data'!$F$23 -> 2746.644 | M17: =L17 -> 2746.644 | O17: =O16*'3. LDC Assumptions and Data'!$G$23 -> 4572.75 | P17: =O17 -> 4572.75 | R17: =R16*'3. LDC Assumptions and Data'!$H$23 -> 4575 | S17: =R17 -> 4575 | U17: =U16*'3. LDC Assumptions and Data'!$I$23 -> 4575 | V17: =U17 -> 4575
B19: Smart Meters included in Rate Base | D19: =SUM(D9:D17) -> 0 | G19: =SUM(G9:G17) -> 0 | J19: =SUM(J9:J17) -> 4243.284 | M19: =SUM(M9:M17) -> 161556.9555 | P19: =SUM(P9:P17) -> 323437.7035 | S19: =SUM(S9:S17) -> 326205.8533 | V19: =SUM(V9:V17) -> 4575
B21: Return on Rate Base
B22: Deemed Short Term Debt % | I22: ='3. LDC Assumptions and Data'!$E$14 -> 0.04 | L22: ='3. LDC Assumptions and Data'!$F14 -> 0.04 | O22: ='3. LDC Assumptions and Data'!$G14 -> 0.04 | R22: ='3. LDC Assumptions and Data'!$H14 -> 0.04 | U22: ='3. LDC Assumptions and Data'!$I14 -> 0.04
B23: Deemed Long Term Debt % | C23: ='3. LDC Assumptions and Data'!$C$15 -> 0.5 | D23: =D19*C23 -> 0 | F23: ='3. LDC Assumptions and Data'!$D$15 -> 0.5 | G23: =G19*F23 -> 0 | I23: ='3. LDC Assumptions and Data'!$E$15 -> 0.493 | J23: =J19*I23 -> 2091.939012 | L23: ='3. LDC Assumptions and Data'!$F15 -> 0.527 | M23: =M19*L23 -> 85140.51555 | O23: ='3. LDC Assumptions and Data'!$G15 -> 0.56 | P23: =P19*O23 -> 181125.114 | R23: ='3. LDC Assumptions and Data'!$H15 -> 0.56 | S23: =S19*R23 -> 182675.2779 | U23: ='3. LDC Assumptions and Data'!$I15 -> 0 | V23: =V19*U23 -> 0
B24: Deemed Equity % | C24: ='3. LDC Assumptions and Data'!$C$16 -> 0.5 | D24: =D19*C24 -> 0 | F24: ='3. LDC Assumptions and Data'!$D$16 -> 0.5 | G24: =G19*F24 -> 0 | I24: ='3. LDC Assumptions and Data'!$E$16 -> 0.467 | J24: =J19*I24 -> 1981.613628 | L24: ='3. LDC Assumptions and Data'!$F$16 -> 0.433 | M24: =M19*L24 -> 69954.16173 | O24: ='3. LDC Assumptions and Data'!$G$16 -> 0.4 | P24: =P19*O24 -> 129375.0814 | R24: ='3. LDC Assumptions and Data'!$H$16 -> 0.4 | S24: =S19*R24 -> 130482.3413 | U24: ='3. LDC Assumptions and Data'!$I$16 -> 0.96 | V24: =V19*U24 -> 4392
D25: =SUM(D23:D24) -> 0 | G25: =SUM(G23:G24) -> 0 | J25: =SUM(J23:J24) -> 4073.55264 | M25: =SUM(M23:M24) -> 155094.6773 | P25: =SUM(P23:P24) -> 310500.1954 | S25: =SUM(S23:S24) -> 313157.6192 | V25: =SUM(V23:V24) -> 4392
B27: Deemed Short Term Debt Rate% | I27: ='3. LDC Assumptions and Data'!$E$18 -> 0.0447 | L27: ='3. LDC Assumptions and Data'!$F18 -> 0.0113 | O27: ='3. LDC Assumptions and Data'!$G18 -> 0.0113 | R27: ='3. LDC Assumptions and Data'!$H18 -> 0.0113 | U27: ='3. LDC Assumptions and Data'!$I18 -> 0.0113
B28: Weighted Debt Rate (3. LDC Assumptions and Data) | C28: ='3. LDC Assumptions and Data'!$C$19 -> 0 | D28: =D23*C28 -> 0 | F28: ='3. LDC Assumptions and Data'!$D$19 -> 0 | G28: =G23*F28 -> 0 | I28: ='3. LDC Assumptions and Data'!$E$19 -> 0 | J28: =J23*I28 -> 0 | L28: ='3. LDC Assumptions and Data'!$F19 -> 0 | M28: =M23*L28 -> 0 | O28: ='3. LDC Assumptions and Data'!$G19 -> 0 | P28: =P23*O28 -> 0 | R28: ='3. LDC Assumptions and Data'!$H19 -> 0 | S28: =S23*R28 -> 0 | U28: ='3. LDC Assumptions and Data'!$I19 -> 0 | V28: =V23*U28 -> 0
B29: Proposed ROE (3. LDC Assumptions and Data) | C29: ='3. LDC Assumptions and Data'!$C$20 -> 0.09 | D29: =D24*C29 -> 0 | F29: ='3. LDC Assumptions and Data'!$D$20 -> 0.09 | G29: =G24*F29 -> 0 | I29: ='3. LDC Assumptions and Data'!$E$20 -> 0.0857 | J29: =J24*I29 -> 169.8242879 | L29: ='3. LDC Assumptions and Data'!$F$20 -> 0.0801 | M29: =M24*L29 -> 5603.328355 | O29: ='3. LDC Assumptions and Data'!$G$20 -> 0.0801 | P29: =P24*O29 -> 10362.94402 | R29: ='3. LDC Assumptions and Data'!$H$20 -> 0.0801 | S29: =S24*R29 -> 10451.63554 | U29: ='3. LDC Assumptions and Data'!$I$20 -> 0.0801 | V29: =V24*U29 -> 351.7992
B30: Return on Rate Base | D30: =SUM(D28:D29) -> 0 | E30: =D30 -> 0 | G30: =SUM(G28:G29) -> 0 | H30: =G30 -> 0 | J30: =SUM(J28:J29) -> 169.8242879 | K30: =J30 -> 169.8242879 | M30: =SUM(M28:M29) -> 5603.328355 | N30: =M30 -> 5603.328355 | P30: =SUM(P28:P29) -> 10362.94402 | Q30: =P30 -> 10362.94402 | S30: =SUM(S28:S29) -> 10451.63554 | T30: =S30 -> 10451.63554 | V30: =SUM(V28:V29) -> 351.7992 | W30: =V30 -> 351.7992
B32: Operating Expenses
B33: Incremental Operating Expenses (3. LDC Assumptions and Data) | E33: ='3. LDC Assumptions and Data'!C46 -> 0 | H33: ='3. LDC Assumptions and Data'!D46 -> 0 | K33: ='3. LDC Assumptions and Data'!E46 -> 0 | N33: ='3. LDC Assumptions and Data'!F46 -> 18310.96 | Q33: ='3. LDC Assumptions and Data'!G46 -> 30485 | T33: ='3. LDC Assumptions and Data'!H46 -> 30500 | W33: ='3. LDC Assumptions and Data'!I46 -> 30500
B35: Amortization Expenses
B36: Amortization Expenses - Smart Meters | D36: =SUM('6. Avg Nt Fix Ass &UCC'!C13:C13) -> 0 | G36: =SUM('6. Avg Nt Fix Ass &UCC'!D13:D13) -> 0 | J36: =SUM('6. Avg Nt Fix Ass &UCC'!E13:E13) -> 0 | M36: =SUM('6. Avg Nt Fix Ass &UCC'!F13:F13) -> 9544.941 | P36: =SUM('6. Avg Nt Fix Ass &UCC'!G13:G13) -> 19461.112 | S36: =SUM('6. Avg Nt Fix Ass &UCC'!H13:H13) -> 20145.67533 | V36: =SUM('6. Avg Nt Fix Ass &UCC'!I13:I13) -> 0
B37: Amortization Expenses - Computer Hardware | D37: =SUM('6. Avg Nt Fix Ass &UCC'!C28:C28) -> 0 | G37: =SUM('6. Avg Nt Fix Ass &UCC'!D28:D28) -> 0 | J37: =SUM('6. Avg Nt Fix Ass &UCC'!E28:E28) -> 0 | M37: =SUM('6. Avg Nt Fix Ass &UCC'!F28:F28) -> 214.931 | P37: =SUM('6. Avg Nt Fix Ass &UCC'!G28:G28) -> 429.862 | S37: =SUM('6. Avg Nt Fix Ass &UCC'!H28:H28) -> 429.862 | V37: =SUM('6. Avg Nt Fix Ass &UCC'!I28:I28) -> 0
B38: Amortization Expenses - Computer Software | D38: =SUM('6. Avg Nt Fix Ass &UCC'!C43:C43) -> 0 | G38: =SUM('6. Avg Nt Fix Ass &UCC'!D43:D43) -> 0 | J38: =SUM('6. Avg Nt Fix Ass &UCC'!E43:E43) -> 942.952 | M38: =SUM('6. Avg Nt Fix Ass &UCC'!F43:F43) -> 4291.061 | P38: =SUM('6. Avg Nt Fix Ass &UCC'!G43:G43) -> 10575.339 | S38: =SUM('6. Avg Nt Fix Ass &UCC'!H43:H43) -> 15754.46 | V38: =SUM('6. Avg Nt Fix Ass &UCC'!I43:I43) -> 0
B39: Amortization Expenses - Tools & Equipment | D39: =SUM('6. Avg Nt Fix Ass &UCC'!C58:C58) -> 0 | G39: =SUM('6. Avg Nt Fix Ass &UCC'!D58:D58) -> 0 | J39: =SUM('6. Avg Nt Fix Ass &UCC'!E58:E58) -> 0 | M39: =SUM('6. Avg Nt Fix Ass &UCC'!F58:F58) -> 0 | P39: =SUM('6. Avg Nt Fix Ass &UCC'!G58:G58) -> 0 | S39: =SUM('6. Avg Nt Fix Ass &UCC'!H58:H58) -> 0 | V39: =SUM('6. Avg Nt Fix Ass &UCC'!I58:I58) -> 0
B40: Amortization Expenses - Other Equipment | D40: =SUM('6. Avg Nt Fix Ass &UCC'!C73:C73) -> 0 | G40: =SUM('6. Avg Nt Fix Ass &UCC'!D73:D73) -> 0 | J40: =SUM('6. Avg Nt Fix Ass &UCC'!E73:E73) -> 0 | M40: =SUM('6. Avg Nt Fix Ass &UCC'!F73:F73) -> 0 | P40: =SUM('6. Avg Nt Fix Ass &UCC'!G73:G73) -> 0 | S40: =SUM('6. Avg Nt Fix Ass &UCC'!H73:H73) -> 0 | V40: =SUM('6. Avg Nt Fix Ass &UCC'!I73:I73) -> 0
B41: Total Amortization Expenses | E41: =SUM(D36:D40) -> 0 | H41: =SUM(G36:G40) -> 0 | K41: =SUM(J36:J40) -> 942.952 | N41: =SUM(M36:M40) -> 14050.933 | Q41: =SUM(P36:P40) -> 30466.313 | T41: =SUM(S36:S40) -> 36329.99733 | W41: =SUM(V36:V40) -> 0
B43: Revenue Requirement Before PILs | E43: =SUM(E30,E41,E33) -> 0 | H43: =SUM(H30,H41,H33) -> 0 | K43: =SUM(K30,K41,K33) -> 1112.776288 | N43: =SUM(N30,N41,N33) -> 37965.22135 | Q43: =SUM(Q30,Q41,Q33) -> 71314.25702 | T43: =SUM(T30,T41,T33) -> 77281.63287 | W43: =SUM(W30,W41,W33) -> 30851.7992
B45: Calculation of Taxable Income
B46: Incremental Operating Expenses | E46: =-E33 -> 0 | H46: =-H33 -> 0 | K46: =-K33 -> 0 | N46: =-N33 -> -18310.96 | Q46: =-Q33 -> -30485 | T46: =-T33 -> -30500 | W46: =-W33 -> -30500
B47: Depreciation Expenses | E47: =-E41 -> 0 | H47: =-H41 -> 0 | K47: =-K41 -> -942.952 | N47: =-N41 -> -14050.933 | Q47: =-Q41 -> -30466.313 | T47: =-T41 -> -36329.99733 | W47: =-W41 -> 0
B48: Interest Expense | E48: =-D28 -> 0 | H48: =-G28 -> 0 | K48: =-J28 -> 0 | N48: =-M28 -> 0 | Q48: =-P28 -> 0 | T48: =-S28 -> 0 | W48: =-V28 -> 0
B49: Taxable Income For PILs | E49: =SUM(E43:E48) -> 0 | H49: =SUM(H43:H48) -> 0 | K49: =SUM(K43:K48) -> 169.8242879 | N49: =SUM(N43:N48) -> 5603.328355 | Q49: =SUM(Q43:Q48) -> 10362.94402 | T49: =SUM(T43:T48) -> 10451.63554 | W49: =SUM(W43:W48) -> 351.7992
B51: Grossed up PILs (5. PILs) | E51: ='5. PILs'!C42 -> 0 | H51: ='5. PILs'!D42 -> 0 | K51: ='5. PILs'!E42 -> -726.6412724 | N51: ='5. PILs'!F42 -> -957.3992635 | Q51: ='5. PILs'!G42 -> -2122.129924 | T51: ='5. PILs'!H42 -> 167.9691598 | W51: ='5. PILs'!I42 -> 0
B53: =B43 -> Revenue Requirement Before PILs | E53: =E43 -> 0 | H53: =H43 -> 0 | K53: =K43 -> 1112.776288 | N53: =N43 -> 37965.22135 | Q53: =Q43 -> 71314.25702 | T53: =T43 -> 77281.63287 | W53: =W43 -> 30851.7992
B54: Grossed up PILs (5. PILs) | E54: =E51 -> 0 | H54: =H51 -> 0 | K54: =K51 -> -726.6412724 | N54: =N51 -> -957.3992635 | Q54: =Q51 -> -2122.129924 | T54: =T51 -> 167.9691598 | W54: =W51 -> 0
B55: Revenue Requirement for Smart Meters | E55: =SUM(E53:E54) -> 0 | H55: =SUM(H53:H54) -> 0 | K55: =SUM(K53:K54) -> 386.1350155 | N55: =SUM(N53:N54) -> 37007.82209 | Q55: =SUM(Q53:Q54) -> 69192.1271 | T55: =SUM(T53:T54) -> 77449.60203 | W55: =SUM(W53:W54) -> 30851.7992

Sheet 5. PILs
B1: Sheet 5. PILs
B4: PILs Calculation
C6: ='2. Smart Meter Data'!D4 -> 2006 | D6: ='2. Smart Meter Data'!E4 -> 2007 | E6: ='2. Smart Meter Data'!F4 -> 2008 | F6: ='2. Smart Meter Data'!G4 -> 2009 | G6: ='2. Smart Meter Data'!H4 -> 2010 | H6: ='2. Smart Meter Data'!I4 -> 2011 | I6: ='2. Smart Meter Data'!J4 -> Later
B7: INCOME TAX | C7: ='2. Smart Meter Data'!D5 -> Audited Actual | D7: ='2. Smart Meter Data'!E5 -> Audited Actual | E7: ='2. Smart Meter Data'!F5 -> Audited Actual | F7: ='2. Smart Meter Data'!G5 -> Audited Actual | G7: ='2. Smart Meter Data'!H5 -> Actual | H7: ='2. Smart Meter Data'!I5 -> Forecasted | I7: ='2. Smart Meter Data'!J5 -> Forecasted
B8: Net Income | C8: ='4. Smart Meter Rev Req'!E49 -> 0 | D8: ='4. Smart Meter Rev Req'!H49 -> 0 | E8: ='4. Smart Meter Rev Req'!K49 -> 169.8242879 | F8: ='4. Smart Meter Rev Req'!N49 -> 5603.328355 | G8: ='4. Smart Meter Rev Req'!Q49 -> 10362.94402 | H8: ='4. Smart Meter Rev Req'!T49 -> 10451.63554 | I8: ='4. Smart Meter Rev Req'!S49 -> 0
B9: Amortization | C9: =-'4. Smart Meter Rev Req'!E47 -> 0 | D9: =-'4. Smart Meter Rev Req'!H47 -> 0 | E9: =-'4. Smart Meter Rev Req'!K47 -> 942.952 | F9: =-'4. Smart Meter Rev Req'!N47 -> 14050.933 | G9: =-'4. Smart Meter Rev Req'!Q47 -> 30466.313 | H9: =-'4. Smart Meter Rev Req'!T47 -> 36329.99733 | I9: =-'4. Smart Meter Rev Req'!S47 -> 0
B10: CCA - Smart Meters | C10: =-'6. Avg Nt Fix Ass &UCC'!C93 -> 0 | D10: =-'6. Avg Nt Fix Ass &UCC'!D93 -> 0 | E10: =-'6. Avg Nt Fix Ass &UCC'!E93 -> 0 | F10: =-'6. Avg Nt Fix Ass &UCC'!F93 -> -11453.9292 | G10: =-'6. Avg Nt Fix Ass &UCC'!G93 -> -22437.02006 | H10: =-'6. Avg Nt Fix Ass &UCC'!H93 -> -21463.53446 | I10: =-'6. Avg Nt Fix Ass &UCC'!I93 -> 0
B11: CCA - Computers | C11: =-'6. Avg Nt Fix Ass &UCC'!C107 -> 0 | D11: =-'6. Avg Nt Fix Ass &UCC'!D107 -> 0 | E11: =-'6. Avg Nt Fix Ass &UCC'!E107 -> -2593.118 | F11: =-'6. Avg Nt Fix Ass &UCC'!F107 -> -11556.32335 | G11: =-'6. Avg Nt Fix Ass &UCC'!G107 -> -23664.23051 | H11: =-'6. Avg Nt Fix Ass &UCC'!H107 -> -24891.48648 | I11: =-'6. Avg Nt Fix Ass &UCC'!I107 -> 0
B12: CCA - Other Equipment | C12: =-'6. Avg Nt Fix Ass &UCC'!C121 -> 0 | D12: =-'6. Avg Nt Fix Ass &UCC'!D121 -> 0 | E12: =-'6. Avg Nt Fix Ass &UCC'!E121 -> 0 | F12: =-'6. Avg Nt Fix Ass &UCC'!F121 -> 0 | G12: =-'6. Avg Nt Fix Ass &UCC'!G121 -> 0 | H12: =-'6. Avg Nt Fix Ass &UCC'!H121 -> 0 | I12: =-'6. Avg Nt Fix Ass &UCC'!I121 -> 0
B13: Change in taxable income | C13: =SUM(C8:C12) -> 0 | D13: 0 | E13: -1480.341712 | F13: -3355.991195 | G13: -5271.993551 | H13: 426.6119369 | I13: 0
B14: Tax Rate (3. LDC Assumptions and Data) | C14: ='3. LDC Assumptions and Data'!C26 -> 0.3612 | D14: ='3. LDC Assumptions and Data'!D26 -> 0.3612 | E14: ='3. LDC Assumptions and Data'!E26 -> 0.335 | F14: ='3. LDC Assumptions and Data'!F26 -> 0.33 | G14: ='3. LDC Assumptions and Data'!G26 -> 0.31 | H14: ='3. LDC Assumptions and Data'!H26 -> 0.2825 | I14: ='3. LDC Assumptions and Data'!I26 -> 0.2625
B15: Income Taxes Payable | C15: =C13*C14 -> 0 | D15: 0 | E15: -495.9144735 | F15: -1107.477094 | G15: -1634.318001 | H15: 120.5178722 | I15: 0
B17: ONTARIO CAPITAL TAX
B18: Smart Meters | C18: ='6. Avg Nt Fix Ass &UCC'!C17 -> 0 | D18: ='6. Avg Nt Fix Ass &UCC'!D17 -> 0 | E18: ='6. Avg Nt Fix Ass &UCC'!E17 -> 0 | F18: ='6. Avg Nt Fix Ass &UCC'!F17 -> 276803.289 | G18: ='6. Avg Nt Fix Ass &UCC'!G17 -> 268479.077 | H18: ='6. Avg Nt Fix Ass &UCC'!H17 -> 257733.4017 | I18: ='6. Avg Nt Fix Ass &UCC'!I17 -> 0
B19: Computer Hardware | C19: ='6. Avg Nt Fix Ass &UCC'!C32 -> 0 | D19: ='6. Avg Nt Fix Ass &UCC'!D32 -> 0 | E19: ='6. Avg Nt Fix Ass &UCC'!E32 -> 0 | F19: ='6. Avg Nt Fix Ass &UCC'!F32 -> 4083.689 | G19: ='6. Avg Nt Fix Ass &UCC'!G32 -> 3653.827 | H19: ='6. Avg Nt Fix Ass &UCC'!H32 -> 3223.965 | I19: ='6. Avg Nt Fix Ass &UCC'!I32 -> 0
B20: Computer Software | C20: ='6. Avg Nt Fix Ass &UCC'!C47 -> 0 | D20: ='6. Avg Nt Fix Ass &UCC'!D47 -> 0 | E20: ='6. Avg Nt Fix Ass &UCC'!E47 -> 8486.568 | F20: ='6. Avg Nt Fix Ass &UCC'!F47 -> 28247.077 | G20: ='6. Avg Nt Fix Ass &UCC'!G47 -> 56462.948 | H20: ='6. Avg Nt Fix Ass &UCC'!H47 -> 53708.488 | I20: ='6. Avg Nt Fix Ass &UCC'!I47 -> 0
B21: Tools & Equipment | C21: ='6. Avg Nt Fix Ass &UCC'!C62 -> 0 | D21: ='6. Avg Nt Fix Ass &UCC'!D62 -> 0 | E21: ='6. Avg Nt Fix Ass &UCC'!E62 -> 0 | F21: ='6. Avg Nt Fix Ass &UCC'!F62 -> 0 | G21: ='6. Avg Nt Fix Ass &UCC'!G62 -> 0 | H21: ='6. Avg Nt Fix Ass &UCC'!H62 -> 0 | I21: ='6. Avg Nt Fix Ass &UCC'!I62 -> 0
B22: Other Equipment | C22: ='6. Avg Nt Fix Ass &UCC'!C77 -> 0 | D22: ='6. Avg Nt Fix Ass &UCC'!D77 -> 0 | E22: ='6. Avg Nt Fix Ass &UCC'!E77 -> 0 | F22: ='6. Avg Nt Fix Ass &UCC'!F77 -> 0 | G22: ='6. Avg Nt Fix Ass &UCC'!G77 -> 0 | H22: ='6. Avg Nt Fix Ass &UCC'!H77 -> 0 | I22: ='6. Avg Nt Fix Ass &UCC'!I77 -> 0
B23: Rate Base | C23: =SUM(C18:C20) -> 0 | D23: 0 | E23: 8486.568 | F23: 309134.055 | G23: 328595.852 | H23: 314665.8547 | I23: 0
B24: Less: Exemption | C24: 0 | D24: 0 | E24: 0 | F24: 0 | G24: 0 | H24: 0 | I24: 0
B25: Deemed Taxable Capital | C25: =C23-C24 -> 0 | D25: 0 | E25: 8486.568 | F25: 309134.055 | G25: 328595.852 | H25: 314665.8547 | I25: 0
B26: Ontario Capital Tax Rate | C26: 0.003 | D26: 0.00225 | E26: 0.00225 | F26: 0.00225 | G26: =0.15%/2 -> 0.00075 | H26: 0 | I26: 0
B27: Net Amount (Taxable Capital x Rate) | C27: =C25*C26 -> 0 | D27: 0 | E27: 19.094778 | F27: 695.5516237 | G27: 246.446889 | H27: 0 | I27: 0
B30: Gross Up
C31: PILs Payable | D31: PILs Payable | E31: PILs Payable | F31: PILs Payable | G31: PILs Payable | H31: PILs Payable | I31: PILs Payable
B32: Change in Income Taxes Payable | C32: =C15 -> 0 | D32: 0 | E32: -495.9144735 | F32: -1107.477094 | G32: -1634.318001 | H32: 120.5178722 | I32: 0
B33: Change in OCT | C33: =C27 -> 0 | D33: 0 | E33: 19.094778 | F33: 695.5516237 | G33: 246.446889 | H33: 0 | I33: 0
B34: PIL's | C34: =SUM(C32:C33) -> 0 | D34: 0 | E34: -476.8196955 | F34: -411.9254707 | G34: -1387.871112 | H34: 120.5178722 | I34: 0
C36: Gross Up | D36: Gross Up | E36: Gross Up | F36: Gross Up | G36: Gross Up | H36: Gross Up | I36: Gross Up
C37: =C14 -> 0.3612 | D37: =D14 -> 0.3612 | E37: 0.335 | F37: 0.33 | G37: 0.31 | H37: 0.2825 | I37: 0.2625
C39: Grossed Up PILs | D39: Grossed Up PILs | E39: Grossed Up PILs | F39: Grossed Up PILs | G39: Grossed Up PILs | H39: Grossed Up PILs | I39: Grossed Up PILs
B40: Change in Income Taxes Payable | C40: =C32/(1-C37) -> 0 | D40: 0 | E40: -745.7360504 | F40: -1652.950887 | G40: -2368.576813 | H40: 167.9691598 | I40: 0
B41: Change in OCT | C41: =C33 -> 0 | D41: 0 | E41: 19.094778 | F41: 695.5516237 | G41: 246.446889 | H41: 0 | I41: 0
B42: PIL's | C42: =SUM(C40:C41) -> 0 | D42: 0 | E42: -726.6412724 | F42: -957.3992635 | G42: -2122.129924 | H42: 167.9691598 | I42: 0

Sheet 6. Avg Nt Fix Ass &UCC
B1: Sheet 6. Avg Net Fixed Assets &UCC
B4: Smart Meter Average Net Fixed Assets
C5: ='2. Smart Meter Data'!D4 -> 2006 | D5: ='2. Smart Meter Data'!E4 -> 2007 | E5: ='2. Smart Meter Data'!F4 -> 2008 | F5: ='2. Smart Meter Data'!G4 -> 2009 | G5: ='2. Smart Meter Data'!H4 -> 2010 | H5: ='2. Smart Meter Data'!I4 -> 2011
B6: Net Fixed Assets - Smart Meters | C6: ='2. Smart Meter Data'!D5 -> Audited Actual | D6: ='2. Smart Meter Data'!E5 -> Audited Actual | E6: ='2. Smart Meter Data'!F5 -> Audited Actual | F6: ='2. Smart Meter Data'!G5 -> Audited Actual | G6: ='2. Smart Meter Data'!H5 -> Actual | H6: ='2. Smart Meter Data'!I5 -> Forecasted
B8: Opening Capital Investment | C8: 0 | D8: =C10 -> 0 | E8: =D10 -> 0 | F8: =E10 -> 0 | G8: =F10 -> 286348.23 | H8: =G10 -> 297485.13
B9: Capital Investment (3. LDC Assumptions and Data) | C9: ='3. LDC Assumptions and Data'!C31 -> 0 | D9: ='3. LDC Assumptions and Data'!D31 -> 0 | E9: ='3. LDC Assumptions and Data'!E31 -> 0 | F9: ='3. LDC Assumptions and Data'!F31 -> 286348.23 | G9: ='3. LDC Assumptions and Data'!G31 -> 11136.9 | H9: ='3. LDC Assumptions and Data'!H31 -> 9400
B10: Closing Capital Investment | C10: =SUM(C8:C9) -> 0 | D10: 0 | E10: 0 | F10: 286348.23 | G10: 297485.13 | H10: 306885.13
B12: Opening Accumulated Amortization | C12: 0 | D12: =C14 -> 0 | E12: =D14 -> 0 | F12: =E14 -> 0 | G12: =F14 -> 9544.941 | H12: =G14 -> 29006.053
B13: ="Amortization ("&'3. LDC Assumptions and Data'!C60&" Years Straight Line)" -> Amortization (15 Years Straight Line) | C13: =IF(C12+(C8/'3. LDC Assumptions and Data'!C60)+(C9/'3. LDC Assumptions and Data'!C60/2)<C10,(C8/'3. LDC Assumptions and Data'!C60)+(C9/'3. LDC Assumptions and Data'!C60/2),C10-C12) -> 0 | D13: =IF(D12+(D8/'3. LDC Assumptions and Data'!D60)+(D9/'3. LDC Assumptions and Data'!D60/2)<D10,(D8/'3. LDC Assumptions and Data'!D60)+(D9/'3. LDC Assumptions and Data'!D60/2),D10-D12) -> 0 | E13: =IF(E12+(E8/'3. LDC Assumptions and Data'!E60)+(E9/'3. LDC Assumptions and Data'!E60/2)<E10,(E8/'3. LDC Assumptions and Data'!E60)+(E9/'3. LDC Assumptions and Data'!E60/2),E10-E12) -> 0 | F13: =IF(F12+(F8/'3. LDC Assumptions and Data'!F60)+(F9/'3. LDC Assumptions and Data'!F60/2)<F10,(F8/'3. LDC Assumptions and Data'!F60)+(F9/'3. LDC Assumptions and Data'!F60/2),F10-F12) -> 9544.941 | G13: =IF(G12+(G8/'3. LDC Assumptions and Data'!G60)+(G9/'3. LDC Assumptions and Data'!G60/2)<G10,(G8/'3. LDC Assumptions and Data'!G60)+(G9/'3. LDC Assumptions and Data'!G60/2),G10-G12) -> 19461.112 | H13: =IF(H12+(H8/'3. LDC Assumptions and Data'!H60)+(H9/'3. LDC Assumptions and Data'!H60/2)<H10,(H8/'3. LDC Assumptions and Data'!H60)+(H9/'3. LDC Assumptions and Data'!H60/2),H10-H12) -> 20145.67533
B14: Closing Accumulated Amortization | C14: =SUM(C12:C13) -> 0 | D14: 0 | E14: 0 | F14: 9544.941 | G14: 29006.053 | H14: 49151.72833
B16: Opening Net Fixed Assets | C16: =0 -> 0 | D16: =C17 -> 0 | E16: =D17 -> 0 | F16: =E17 -> 0 | G16: =F17 -> 276803.289 | H16: =G17 -> 268479.077
B17: Closing Net Fixed Assets | C17: =C10-C14 -> 0 | D17: 0 | E17: 0 | F17: 276803.289 | G17: 268479.077 | H17: 257733.4017
B18: Average Net Fixed Assets | C18: =(C17+C16)/2 -> 0 | D18: 0 | E18: 0 | F18: 138401.6445 | G18: 272641.183 | H18: 263106.2393
C20: =C5 -> 2006 | D20: 2007 | E20: 2008 | F20: 2009 | G20: 2010 | H20: 2011
B21: Net Fixed Assets - Computer Hardware | C21: Audited Actual | D21: Audited Actual | E21: Audited Actual | F21: Audited Actual | G21: Actual | H21: Forecasted
B23: Opening Capital Investment | C23: 0 | D23: =C25 -> 0 | E23: =D25 -> 0 | F23: =E25 -> 0 | G23: =F25 -> 4298.62 | H23: =G25 -> 4298.62
B24: Capital Investment (3. LDC Assumptions and Data) | C24: ='3. LDC Assumptions and Data'!C32 -> 0 | D24: ='3. LDC Assumptions and Data'!D32 -> 0 | E24: ='3. LDC Assumptions and Data'!E32 -> 0 | F24: ='3. LDC Assumptions and Data'!F32 -> 4298.62 | G24: ='3. LDC Assumptions and Data'!G32 -> 0 | H24: ='3. LDC Assumptions and Data'!H32 -> 0
B25: Closing Capital Investment | C25: =SUM(C23:C24) -> 0 | D25: 0 | E25: 0 | F25: 4298.62 | G25: 4298.62 | H25: 4298.62
B27: Opening Accumulated Amortization | C27: 0 | D27: =C29 -> 0 | E27: =D29 -> 0 | F27: =E29 -> 0 | G27: =F29 -> 214.931 | H27: =G29 -> 644.793
B28: ="Amortization (" & '3. LDC Assumptions and Data'!C61 &" Years Straight Line)" -> Amortization (10 Years Straight Line) | C28: =IF(C27+(C23/'3. LDC Assumptions and Data'!C61)+(C24/'3. LDC Assumptions and Data'!C61/2)<C25,(C23/'3. LDC Assumptions and Data'!C61)+(C24/'3. LDC Assumptions and Data'!C61/2),C25-C27) -> 0 | D28: =IF(D27+(D23/'3. LDC Assumptions and Data'!C61)+(D24/'3. LDC Assumptions and Data'!C61/2)<D25,(D23/'3. LDC Assumptions and Data'!C61)+(D24/'3. LDC Assumptions and Data'!C61/2),D25-D27) -> 0 | E28: =IF(E27+(E23/'3. LDC Assumptions and Data'!C61)+(E24/'3. LDC Assumptions and Data'!C61/2)<E25,(E23/'3. LDC Assumptions and Data'!C61)+(E24/'3. LDC Assumptions and Data'!C61/2),E25-E27) -> 0 | F28: =IF(F27+(F23/'3. LDC Assumptions and Data'!C61)+(F24/'3. LDC Assumptions and Data'!C61/2)<F25,(F23/'3. LDC Assumptions and Data'!C61)+(F24/'3. LDC Assumptions and Data'!C61/2),F25-F27) -> 214.931 | G28: =IF(G27+(G23/'3. LDC Assumptions and Data'!C61)+(G24/'3. LDC Assumptions and Data'!C61/2)<G25,(G23/'3. LDC Assumptions and Data'!C61)+(G24/'3. LDC Assumptions and Data'!C61/2),G25-G27) -> 429.862 | H28: =IF(H27+(H23/'3. LDC Assumptions and Data'!D61)+(H24/'3. LDC Assumptions and Data'!D61/2)<H25,(H23/'3. LDC Assumptions and Data'!D61)+(H24/'3. LDC Assumptions and Data'!D61/2),H25-H27) -> 429.862
B29: Closing Accumulated Amortization | C29: =SUM(C27:C28) -> 0 | D29: 0 | E29: 0 | F29: 214.931 | G29: 644.793 | H29: 1074.655
B31: Opening Net Fixed Assets | C31: =0 -> 0 | D31: =C32 -> 0 | E31: =D32 -> 0 | F31: =E32 -> 0 | G31: =F32 -> 4083.689 | H31: =G32 -> 3653.827
B32: Closing Net Fixed Assets | C32: =C25-C29 -> 0 | D32: 0 | E32: 0 | F32: 4083.689 | G32: 3653.827 | H32: 3223.965
B33: Average Net Fixed Assets | C33: =(C32+C31)/2 -> 0 | D33: 0 | E33: 0 | F33: 2041.8445 | G33: 3868.758 | H33: 3438.896
C35: =C20 -> 2006 | D35: 2007 | E35: 2008 | F35: 2009 | G35: 2010 | H35: 2011
B36: Net Fixed Assets - Computer Software | C36: Audited Actual | D36: Audited Actual | E36: Audited Actual | F36: Audited Actual | G36: Actual | H36: Forecasted
B38: Opening Capital Investment | C38: 0 | D38: =C40 -> 0 | E38: =D40 -> 0 | F38: =E40 -> 9429.52 | G38: =F40 -> 33481.09 | H38: =G40 -> 72272.3
B39: Capital Investment (3. LDC Assumptions and Data) | C39: ='3. LDC Assumptions and Data'!C33 -> 0 | D39: ='3. LDC Assumptions and Data'!D33 -> 0 | E39: ='3. LDC Assumptions and Data'!E33 -> 9429.52 | F39: ='3. LDC Assumptions and Data'!F33 -> 24051.57 | G39: ='3. LDC Assumptions and Data'!G33 -> 38791.21 | H39: ='3. LDC Assumptions and Data'!H33 -> 13000
B40: Closing Capital Investment | C40: =SUM(C38:C39) -> 0 | D40: 0 | E40: 9429.52 | F40: 33481.09 | G40: 72272.3 | H40: 85272.3
B42: Opening Accumulated Amortization | C42: 0 | D42: =C44 -> 0 | E42: =D44 -> 0 | F42: =E44 -> 942.952 | G42: =F44 -> 5234.013 | H42: =G44 -> 15809.352
B43: ="Amortization Year 1 (" & '3. LDC Assumptions and Data'!C62 &" Years Straight Line)" -> Amortization Year 1 (5 Years Straight Line) | C43: =IF(C42+(C38/'3. LDC Assumptions and Data'!C62)+(C39/'3. LDC Assumptions and Data'!C62/2)<C40,(C38/'3. LDC Assumptions and Data'!C62)+(C39/'3. LDC Assumptions and Data'!C62/2),C40-C42) -> 0 | D43: =IF(D42+(D38/'3. LDC Assumptions and Data'!C62)+(D39/'3. LDC Assumptions and Data'!C62/2)<D40,(D38/'3. LDC Assumptions and Data'!C62)+(D39/'3. LDC Assumptions and Data'!C62/2),D40-D42) -> 0 | E43: =IF(E42+(E38/'3. LDC Assumptions and Data'!C62)+(E39/'3. LDC Assumptions and Data'!C62/2)<E40,(E38/'3. LDC Assumptions and Data'!C62)+(E39/'3. LDC Assumptions and Data'!C62/2),E40-E42) -> 942.952 | F43: =IF(F42+(F38/'3. LDC Assumptions and Data'!C62)+(F39/'3. LDC Assumptions and Data'!C62/2)<F40,(F38/'3. LDC Assumptions and Data'!C62)+(F39/'3. LDC Assumptions and Data'!C62/2),F40-F42) -> 4291.061 | G43: =IF(G42+(G38/'3. LDC Assumptions and Data'!C62)+(G39/'3. LDC Assumptions and Data'!C62/2)<G40,(G38/'3. LDC Assumptions and Data'!C62)+(G39/'3. LDC Assumptions and Data'!C62/2),G40-G42) -> 10575.339 | H43: =IF(H42+(H38/'3. LDC Assumptions and Data'!D62)+(H39/'3. LDC Assumptions and Data'!D62/2)<H40,(H38/'3. LDC Assumptions and Data'!D62)+(H39/'3. LDC Assumptions and Data'!D62/2),H40-H42) -> 15754.46
B44: Closing Accumulated Amortization | C44: =SUM(C42:C43) -> 0 | D44: 0 | E44: 942.952 | F44: 5234.013 | G44: 15809.352 | H44: 31563.812
B46: Opening Net Fixed Assets | C46: =0 -> 0 | D46: =C47 -> 0 | E46: =D47 -> 0 | F46: =E47 -> 8486.568 | G46: =F47 -> 28247.077 | H46: =G47 -> 56462.948
B47: Closing Net Fixed Assets | C47: =C40-C44 -> 0 | D47: 0 | E47: 8486.568 | F47: 28247.077 | G47: 56462.948 | H47: 53708.488
B48: Average Net Fixed Assets | C48: =(C47+C46)/2 -> 0 | D48: 0 | E48: 4243.284 | F48: 18366.8225 | G48: 42355.0125 | H48: 55085.718
C50: =C35 -> 2006 | D50: 2007 | E50: 2008 | F50: 2009 | G50: 2010 | H50: 2011
B51: Net Fixed Assets - Tools & Equipment | C51: Audited Actual | D51: Audited Actual | E51: Audited Actual | F51: Audited Actual | G51: Actual | H51: Forecasted
B53: Opening Capital Investment | C53: 0 | D53: =C55 -> 0 | E53: =D55 -> 0 | F53: =E55 -> 0 | G53: =F55 -> 0 | H53: =G55 -> 0
B54: Capital Investment (3. LDC Assumptions and Data) | C54: ='3. LDC Assumptions and Data'!C34 -> 0 | D54: ='3. LDC Assumptions and Data'!D34 -> 0 | E54: ='3. LDC Assumptions and Data'!E34 -> 0 | F54: ='3. LDC Assumptions and Data'!F34 -> 0 | G54: ='3. LDC Assumptions and Data'!G34 -> 0 | H54: ='3. LDC Assumptions and Data'!H34 -> 0
B55: Closing Capital Investment | C55: =SUM(C53:C54) -> 0 | D55: 0 | E55: 0 | F55: 0 | G55: 0 | H55: 0
B57: Opening Accumulated Amortization | C57: 0 | D57: =C59 -> 0 | E57: =D59 -> 0 | F57: =E59 -> 0 | G57: =F59 -> 0 | H57: =G59 -> 0
B58: ="Amortization Year 1 (" & '3. LDC Assumptions and Data'!C63 &" Years Straight Line)" -> Amortization Year 1 (10 Years Straight Line) | C58: =IF(C57+(C53/'3. LDC Assumptions and Data'!C63)+(C54/'3. LDC Assumptions and Data'!C63/2)<C55,(C53/'3. LDC Assumptions and Data'!C63)+(C54/'3. LDC Assumptions and Data'!C63/2),C55-C57) -> 0 | D58: =IF(D57+(D53/'3. LDC Assumptions and Data'!C63)+(D54/'3. LDC Assumptions and Data'!C63/2)<D55,(D53/'3. LDC Assumptions and Data'!C63)+(D54/'3. LDC Assumptions and Data'!C63/2),D55-D57) -> 0 | E58: =IF(E57+(E53/'3. LDC Assumptions and Data'!C63)+(E54/'3. LDC Assumptions and Data'!C63/2)<E55,(E53/'3. LDC Assumptions and Data'!C63)+(E54/'3. LDC Assumptions and Data'!C63/2),E55-E57) -> 0 | F58: =IF(F57+(F53/'3. LDC Assumptions and Data'!C63)+(F54/'3. LDC Assumptions and Data'!C63/2)<F55,(F53/'3. LDC Assumptions and Data'!C63)+(F54/'3. LDC Assumptions and Data'!C63/2),F55-F57) -> 0 | G58: =IF(G57+(G53/'3. LDC Assumptions and Data'!C63)+(G54/'3. LDC Assumptions and Data'!C63/2)<G55,(G53/'3. LDC Assumptions and Data'!C63)+(G54/'3. LDC Assumptions and Data'!C63/2),G55-G57) -> 0 | H58: =IF(H57+(H53/'3. LDC Assumptions and Data'!D63)+(H54/'3. LDC Assumptions and Data'!D63/2)<H55,(H53/'3. LDC Assumptions and Data'!D63)+(H54/'3. LDC Assumptions and Data'!D63/2),H55-H57) -> 0
B59: Closing Accumulated Amortization | C59: =SUM(C57:C58) -> 0 | D59: 0 | E59: 0 | F59: 0 | G59: 0 | H59: 0
B61: Opening Net Fixed Assets | C61: =0 -> 0 | D61: =C62 -> 0 | E61: =D62 -> 0 | F61: =E62 -> 0 | G61: =F62 -> 0 | H61: =G62 -> 0
B62: Closing Net Fixed Assets | C62: =C55-C59 -> 0 | D62: 0 | E62: 0 | F62: 0 | G62: 0 | H62: 0
B63: Average Net Fixed Assets | C63: =(C62+C61)/2 -> 0 | D63: 0 | E63: 0 | F63: 0 | G63: 0 | H63: 0
C65: =C50 -> 2006 | D65: 2007 | E65: 2008 | F65: 2009 | G65: 2010 | H65: 2011
B66: Net Fixed Assets - Other Equipment | C66: Audited Actual | D66: Audited Actual | E66: Audited Actual | F66: Audited Actual | G66: Actual | H66: Forecasted
B68: Opening Capital Investment | C68: 0 | D68: =C70 -> 0 | E68: =D70 -> 0 | F68: =E70 -> 0 | G68: =F70 -> 0 | H68: =G70 -> 0
B69: Capital Investment (3. LDC Assumptions and Data) | C69: ='3. LDC Assumptions and Data'!C35 -> 0 | D69: ='3. LDC Assumptions and Data'!D35 -> 0 | E69: ='3. LDC Assumptions and Data'!E35 -> 0 | F69: ='3. LDC Assumptions and Data'!F35 -> 0 | G69: ='3. LDC Assumptions and Data'!G35 -> 0 | H69: ='3. LDC Assumptions and Data'!H35 -> 0
B70: Closing Capital Investment | C70: =SUM(C68:C69) -> 0 | D70: 0 | E70: 0 | F70: 0 | G70: 0 | H70: 0
B72: Opening Accumulated Amortization | C72: 0 | D72: =C74 -> 0 | E72: =D74 -> 0 | F72: =E74 -> 0 | G72: =F74 -> 0 | H72: =G74 -> 0
B73: ="Amortization Year 1 (" & '3. LDC Assumptions and Data'!C64 &" Years Straight Line)" -> Amortization Year 1 (10 Years Straight Line) | C73: =IF(C72+(C68/'3. LDC Assumptions and Data'!C64)+(C69/'3. LDC Assumptions and Data'!C64/2)<C70,(C68/'3. LDC Assumptions and Data'!C64)+(C69/'3. LDC Assumptions and Data'!C64/2),C70-C72) -> 0 | D73: =IF(D72+(D68/'3. LDC Assumptions and Data'!C64)+(D69/'3. LDC Assumptions and Data'!C64/2)<D70,(D68/'3. LDC Assumptions and Data'!C64)+(D69/'3. LDC Assumptions and Data'!C64/2),D70-D72) -> 0 | E73: =IF(E72+(E68/'3. LDC Assumptions and Data'!C64)+(E69/'3. LDC Assumptions and Data'!C64/2)<E70,(E68/'3. LDC Assumptions and Data'!C64)+(E69/'3. LDC Assumptions and Data'!C64/2),E70-E72) -> 0 | F73: =IF(F72+(F68/'3. LDC Assumptions and Data'!C64)+(F69/'3. LDC Assumptions and Data'!C64/2)<F70,(F68/'3. LDC Assumptions and Data'!C64)+(F69/'3. LDC Assumptions and Data'!C64/2),F70-F72) -> 0 | G73: =IF(G72+(G68/'3. LDC Assumptions and Data'!C64)+(G69/'3. LDC Assumptions and Data'!C64/2)<G70,(G68/'3. LDC Assumptions and Data'!C64)+(G69/'3. LDC Assumptions and Data'!C64/2),G70-G72) -> 0 | H73: =IF(H72+(H68/'3. LDC Assumptions and Data'!D64)+(H69/'3. LDC Assumptions and Data'!D64/2)<H70,(H68/'3. LDC Assumptions and Data'!D64)+(H69/'3. LDC Assumptions and Data'!D64/2),H70-H72) -> 0
B74: Closing Accumulated Amortization | C74: =SUM(C72:C73) -> 0 | D74: 0 | E74: 0 | F74: 0 | G74: 0 | H74: 0
B76: Opening Net Fixed Assets | C76: =0 -> 0 | D76: =C77 -> 0 | E76: =D77 -> 0 | F76: =E77 -> 0 | G76: =F77 -> 0 | H76: =G77 -> 0
B77: Closing Net Fixed Assets | C77: =C70-C74 -> 0 | D77: 0 | E77: 0 | F77: 0 | G77: 0 | H77: 0
B78: Average Net Fixed Assets | C78: =(C77+C76)/2 -> 0 | D78: 0 | E78: 0 | F78: 0 | G78: 0 | H78: 0
B81: For PILs Calculation
B83: UCC - Smart Meters | C83: =C65 -> 2006 | D83: 2007 | E83: 2008 | F83: 2009 | G83: 2010 | H83: 2011
C84: Audited Actual | D84: Audited Actual | E84: Audited Actual | F84: Audited Actual | G84: Actual | H84: Forecasted
B86: Opening UCC | C86: 0 | D86: =C88-C93 -> 0 | E86: =D88-D93 -> 0 | F86: =E88-E93 -> 0 | G86: =F88-F93 -> 274894.3008 | H86: =G88-G93 -> 263594.1807
B87: Capital Additions | C87: =C9 -> 0 | D87: 0 | E87: 0 | F87: 286348.23 | G87: 11136.9 | H87: 9400
B88: UCC Before Half Year Rule | C88: =SUM(C86:C87) -> 0 | D88: 0 | E88: 0 | F88: 286348.23 | G88: 286031.2008 | H88: 272994.1807
B89: Half Year Rule (1/2 Additions - Disposals) | C89: =SUM(C87:C87)/2 -> 0 | D89: 0 | E89: 0 | F89: 143174.115 | G89: 5568.45 | H89: 4700
B90: Reduced UCC | C90: =C86+C89 -> 0 | D90: 0 | E90: 0 | F90: 143174.115 | G90: 280462.7508 | H90: 268294.1807
B91: CCA Rate Class | C91: ='3. LDC Assumptions and Data'!C68 -> 47 | D91: ='3. LDC Assumptions and Data'!D68 -> 47 | E91: ='3. LDC Assumptions and Data'!E68 -> 47 | F91: ='3. LDC Assumptions and Data'!F68 -> 47 | G91: ='3. LDC Assumptions and Data'!G68 -> 47 | H91: ='3. LDC Assumptions and Data'!H68 -> 47
B92: CCA Rate | C92: ='3. LDC Assumptions and Data'!C69 -> 0.08 | D92: ='3. LDC Assumptions and Data'!D69 -> 0.08 | E92: ='3. LDC Assumptions and Data'!E69 -> 0.08 | F92: ='3. LDC Assumptions and Data'!F69 -> 0.08 | G92: ='3. LDC Assumptions and Data'!G69 -> 0.08 | H92: ='3. LDC Assumptions and Data'!H69 -> 0.08
B93: CCA | C93: =IF((C90*C92)<C90,(C90*C92),C90) -> 0 | D93: 0 | E93: 0 | F93: 11453.9292 | G93: 22437.02006 | H93: 21463.53446
B94: Closing UCC | C94: =IF((C88-C93)<0,0,(C88-C93)) -> 0 | D94: 0 | E94: 0 | F94: 274894.3008 | G94: 263594.1807 | H94: 251530.6463
B96: UCC - Computer Equipment | C96: =C83 -> 2006 | D96: 2007 | E96: 2008 | F96: 2009 | G96: 2010 | H96: 2011
C97: Audited Actual | D97: Audited Actual | E97: Audited Actual | F97: Audited Actual | G97: Actual | H97: Forecasted
B99: Opening UCC | C99: 0 | D99: =C108 -> 0 | E99: =D108 -> 0 | F99: =E108 -> 6836.402 | G99: =F108 -> 23630.26865 | H99: =G108 -> 38757.24814
B100: Capital Additions Computer Hardware | C100: =C24 -> 0 | D100: 0 | E100: 0 | F100: 4298.62 | G100: 0 | H100: 0
B101: Capital Additions Computer Software | C101: =C39 -> 0 | D101: 0 | E101: 9429.52 | F101: 24051.57 | G101: 38791.21 | H101: 13000
B102: UCC Before Half Year Rule | C102: =SUM(C99:C101) -> 0 | D102: 0 | E102: 9429.52 | F102: 35186.592 | G102: 62421.47865 | H102: 51757.24814
B103: Half Year Rule (1/2 Additions - Disposals) | C103: =SUM(C100:C101)/2 -> 0 | D103: 0 | E103: 4714.76 | F103: 14175.095 | G103: 19395.605 | H103: 6500
B104: Reduced UCC | C104: =C99+C103 -> 0 | D104: 0 | E104: 4714.76 | F104: 21011.497 | G104: 43025.87365 | H104: 45257.24814
B105: CCA Rate Class | C105: ='3. LDC Assumptions and Data'!C71 -> 45 | D105: ='3. LDC Assumptions and Data'!D71 -> 50 | E105: ='3. LDC Assumptions and Data'!E71 -> 50 | F105: ='3. LDC Assumptions and Data'!F71 -> 50 | G105: ='3. LDC Assumptions and Data'!G71 -> 50 | H105: ='3. LDC Assumptions and Data'!H71 -> 50
B106: CCA Rate | C106: ='3. LDC Assumptions and Data'!C72 -> 0.45 | D106: ='3. LDC Assumptions and Data'!D72 -> 0.55 | E106: ='3. LDC Assumptions and Data'!E72 -> 0.55 | F106: ='3. LDC Assumptions and Data'!F72 -> 0.55 | G106: ='3. LDC Assumptions and Data'!G72 -> 0.55 | H106: ='3. LDC Assumptions and Data'!H72 -> 0.55
B107: CCA | C107: =IF((C104*C106)<C104,(C104*C106),C104) -> 0 | D107: 0 | E107: 2593.118 | F107: 11556.32335 | G107: 23664.23051 | H107: 24891.48648
B108: Closing UCC | C108: =IF((C102-C107)<0,0,(C102-C107)) -> 0 | D108: 0 | E108: 6836.402 | F108: 23630.26865 | G108: 38757.24814 | H108: 26865.76166
B110: UCC - General Equipment | C110: =C96 -> 2006 | D110: 2007 | E110: 2008 | F110: 2009 | G110: 2010 | H110: 2011
C111: Audited Actual | D111: Audited Actual | E111: Audited Actual | F111: Audited Actual | G111: Actual | H111: Forecasted
B113: Opening UCC | C113: 0 | D113: =C122 -> 0 | E113: =D122 -> 0 | F113: =E122 -> 0 | G113: =F122 -> 0 | H113: =G122 -> 0
B114: Capital Additions Tools & Equipment | C114: =C54 -> 0 | D114: 0 | E114: 0 | F114: 0 | G114: 0 | H114: 0
B115: Capital Additions Other Equipment | C115: =C69 -> 0 | D115: 0 | E115: 0 | F115: 0 | G115: 0 | H115: 0
B116: UCC Before Half Year Rule | C116: =SUM(C113:C115) -> 0 | D116: 0 | E116: 0 | F116: 0 | G116: 0 | H116: 0
B117: Half Year Rule (1/2 Additions - Disposals) | C117: =SUM(C114:C115)/2 -> 0 | D117: 0 | E117: 0 | F117: 0 | G117: 0 | H117: 0
B118: Reduced UCC | C118: =C113+C117 -> 0 | D118: 0 | E118: 0 | F118: 0 | G118: 0 | H118: 0
B119: CCA Rate Class | C119: ='3. LDC Assumptions and Data'!C74 -> 8 | D119: ='3. LDC Assumptions and Data'!D74 -> 8 | E119: ='3. LDC Assumptions and Data'!E74 -> 8 | F119: ='3. LDC Assumptions and Data'!F74 -> 8 | G119: ='3. LDC Assumptions and Data'!G74 -> 8 | H119: ='3. LDC Assumptions and Data'!H74 -> 8
B120: CCA Rate | C120: ='3. LDC Assumptions and Data'!C75 -> 0.2 | D120: ='3. LDC Assumptions and Data'!D75 -> 0.2 | E120: ='3. LDC Assumptions and Data'!E75 -> 0.2 | F120: ='3. LDC Assumptions and Data'!F75 -> 0.2 | G120: ='3. LDC Assumptions and Data'!G75 -> 0.2 | H120: ='3. LDC Assumptions and Data'!H75 -> 0.2
B121: CCA | C121: =IF((C118*C120)<C118,(C118*C120),C118) -> 0 | D121: 0 | E121: 0 | F121: 0 | G121: 0 | H121: 0
B122: Closing UCC | C122: =IF((C116-C121)<0,0,(C116-C121)) -> 0 | D122: 0 | E122: 0 | F122: 0 | G122: 0 | H122: 0

Sheet 7. Funding Adder Collected
B1: Sheet 7. Smart Meter Funding Adder Collected | J1: Approved Deferral and Variance Accounts | K1: CWIP Account
J2: Prescribed Interest Rate (per the Bankers' Acceptances-3 months Plus 0.25 Spread) | K2: Prescribed Interest Rate (per the DEX Mid Term Corporate Bond Index Yield 2)
A3: Date | B3: Opening | C3: Fund Adder | D3: Int. Rate | E3: Interest | F3: Closing | I3: Q2 2006 | J3: 4.14 | K3: 4.68
A4: 2006-01-01 | B4: 0 | C4: 0 | D4: ='3. LDC Assumptions and Data'!$C$19 -> 0 | E4: =(B4*D4)/12 -> 0 | F4: =SUM(B4:C4,E4) -> 0 | I4: Q3 2006 | J4: 4.59 | K4: 5.05
A5: 2006-02-01 | B5: =F4 -> 0 | C5: 0 | D5: ='3. LDC Assumptions and Data'!$C$19 -> 0 | E5: 0 | F5: =SUM(B5:C5,E5) -> 0 | I5: Q4 2006 | J5: 4.59 | K5: 4.72
A6: 2006-03-01 | B6: 0 | C6: 0 | D6: ='3. LDC Assumptions and Data'!$C$19 -> 0 | E6: 0 | F6: 0 | I6: Q1 2007 | J6: 4.59 | K6: 4.72
A7: 2006-04-01 | B7: 0 | C7: 0 | D7: 0.0414 | E7: 0 | F7: 0 | I7: Q2 2007 | J7: 4.59 | K7: 4.72
A8: 2006-05-01 | B8: 0 | C8: 0 | D8: 0.0414 | E8: 0 | F8: 0 | I8: Q3 2007 | J8: 4.59 | K8: 5.18
A9: 2006-06-01 | B9: 0 | C9: 348.92 | D9: 0.0414 | E9: 0 | F9: 348.92 | I9: Q4 2007 | J9: 5.14 | K9: 5.18
A10: 2006-07-01 | B10: 348.92 | C10: 348.92 | D10: 0.0459 | E10: 1.334619 | F10: 699.174619 | I10: Q1 2008 | J10: 5.14 | K10: 5.18
A11: 2006-08-01 | B11: 699.174619 | C11: 348.92 | D11: 0.0459 | E11: 2.674342918 | F11: 1050.768962 | I11: Q2 2008 | J11: 4.08 | K11: 5.18
A12: 2006-09-01 | B12: 1050.768962 | C12: 348.92 | D12: 0.0459 | E12: 4.019191279 | F12: 1403.708153 | I12: Q3 2008 | J12: 3.35 | K12: 5.43
A13: 2006-10-01 | B13: 1403.708153 | C13: 348.92 | D13: 0.0459 | E13: 5.369183686 | F13: 1757.997337 | I13: Q4 2008 | J13: 3.35 | K13: 5.43
A14: 2006-11-01 | B14: 1757.997337 | C14: 348.92 | D14: 0.0459 | E14: 6.724339814 | F14: 2113.641677 | I14: Q1 2009 | J14: 2.45 | K14: 6.61
A15: 2006-12-01 | B15: 2113.641677 | C15: 348.92 | D15: 0.0459 | E15: 8.084679413 | F15: 2470.646356 | I15: Q2 2009 | J15: 1 | K15: 6.61
A16: 2007-01-01 | B16: 2470.646356 | C16: 348.92 | D16: 0.0459 | E16: 9.450222312 | F16: 2829.016578 | I16: Q3 2009 | J16: 0.55 | K16: 5.67
A17: 2007-02-01 | B17: 2829.016578 | C17: 348.92 | D17: 0.0459 | E17: 10.82098841 | F17: 3188.757567 | I17: Q4 2009 | J17: 0.55 | K17: 4.66
A18: 2007-03-01 | B18: 3188.757567 | C18: 348.92 | D18: 0.0459 | E18: 12.19699769 | F18: 3549.874565 | I18: Q1 2010 | J18: 0.55 | K18: 4.34
A19: 2007-04-01 | B19: 3549.874565 | C19: 348.92 | D19: 0.0459 | E19: 13.57827021 | F19: 3912.372835 | I19: Q2 2010 | J19: 0.55 | K19: 4.34
A20: 2007-05-01 | B20: 3912.372835 | C20: 348.92 | D20: 0.0459 | E20: 14.96482609 | F20: 4276.257661 | I20: Q3 2010 | J20: 0.89 | K20: 4.66
A21: 2007-06-01 | B21: 4276.257661 | C21: 348.92 | D21: 0.0459 | E21: 16.35668555 | F21: 4641.534346
A22: 2007-07-01 | B22: 4641.534346 | C22: 348.92 | D22: 0.0459 | E22: 17.75386887 | F22: 5008.208215
A23: 2007-08-01 | B23: 5008.208215 | C23: 348.92 | D23: 0.0459 | E23: 19.15639642 | F23: 5376.284612
A24: 2007-09-01 | B24: 5376.284612 | C24: 348.92 | D24: 0.0459 | E24: 20.56428864 | F24: 5745.7689
A25: 2007-10-01 | B25: 5745.7689 | C25: 348.92 | D25: 0.0514 | E25: 24.61104346 | F25: 6119.299944
A26: 2007-11-01 | B26: 6119.299944 | C26: 348.92 | D26: 0.0514 | E26: 26.21100143 | F26: 6494.430945
A27: 2007-12-01 | B27: 6494.430945 | C27: 348.92 | D27: 0.0514 | E27: 27.81781255 | F27: 6871.168758
A28: 2008-01-01 | B28: 6871.168758 | C28: 348.92 | D28: 0.0514 | E28: =(B28*D28)/12 -> 29.43150618 | F28: =SUM(B28:C28,E28) -> 7249.520264
A29: 2008-02-01 | B29: =F28 -> 7249.520264 | C29: 348.92 | D29: 0.0514 | E29: 31.0521118 | F29: 7629.492376
A30: 2008-03-01 | B30: 7629.492376 | C30: 348.92 | D30: 0.0514 | E30: 32.67965901 | F30: 8011.092035
A31: 2008-04-01 | B31: 8011.092035 | C31: 348.92 | D31: 0.0408 | E31: 27.23771292 | F31: 8387.249748
A32: 2008-05-01 | B32: 8387.249748 | C32: 348.92 | D32: 0.0408 | E32: 28.51664914 | F32: 8764.686397
A33: 2008-06-01 | B33: 8764.686397 | C33: 348.92 | D33: 0.0408 | E33: 29.79993375 | F33: 9143.406331
A34: 2008-07-01 | B34: 9143.406331 | C34: 348.92 | D34: 0.0335 | E34: 25.52534267 | F34: 9517.851673
A35: 2008-08-01 | B35: 9517.851673 | C35: 348.92 | D35: 0.0335 | E35: 26.57066925 | F35: 9893.342342
A36: 2008-09-01 | B36: 9893.342342 | C36: 349.44 | D36: 0.0335 | E36: 27.61891404 | F36: 10270.40126
A37: 2008-10-01 | B37: 10270.40126 | C37: 349.44 | D37: 0.0335 | E37: 28.67153684 | F37: 10648.51279
A38: 2008-11-01 | B38: 10648.51279 | C38: 349.44 | D38: 0.0335 | E38: 29.72709821 | F38: 11027.67989
A39: 2008-12-01 | B39: 11027.67989 | C39: 349.44 | D39: 0.0335 | E39: 30.78560636 | F39: 11407.9055
A40: 2009-01-01 | B40: 11407.9055 | C40: 349.44 | D40: 0.0245 | E40: 23.29114039 | F40: 11780.63664
A41: 2009-02-01 | B41: 11780.63664 | C41: 349.44 | D41: 0.0245 | E41: 24.05213314 | F41: 12154.12877
A42: 2009-03-01 | B42: 12154.12877 | C42: 349.44 | D42: 0.0245 | E42: 24.81467958 | F42: 12528.38345
A43: 2009-04-01 | B43: 12528.38345 | C43: 349.44 | D43: 0.01 | E43: 10.44031954 | F43: 12888.26377
A44: 2009-05-01 | B44: 12888.26377 | C44: 349.44 | D44: 0.01 | E44: 10.74021981 | F44: 13248.44399
A45: 2009-06-01 | B45: 13248.44399 | C45: 1344 | D45: 0.01 | E45: 11.04036999 | F45: 14603.48436
A46: 2009-07-01 | B46: 14603.48436 | C46: 1344 | D46: 0.0055 | E46: 6.693263665 | F46: 15954.17762
A47: 2009-08-01 | B47: 15954.17762 | C47: 1344 | D47: 0.0055 | E47: 7.312331411 | F47: 17305.48996
A48: 2009-09-01 | B48: 17305.48996 | C48: 1344 | D48: 0.0055 | E48: 7.931682896 | F48: 18657.42164
A49: 2009-10-01 | B49: 18657.42164 | C49: 1344 | D49: 0.0055 | E49: 8.551318251 | F49: 20009.97296
A50: 2009-11-01 | B50: 20009.97296 | C50: 1344 | D50: 0.0055 | E50: 9.171237605 | F50: 21363.14419
A51: 2009-12-01 | B51: 21363.14419 | C51: 1344 | D51: 0.0055 | E51: 9.791441089 | F51: 22716.93564
A52: 2010-01-01 | B52: 22716.93564 | C52: 1344 | D52: 0.0055 | E52: 10.41192883 | F52: 24071.34756
A53: 2010-02-01 | B53: 24071.34756 | C53: 1344 | D53: 0.0055 | E53: 11.03270097 | F53: 25426.38027
A54: 2010-03-01 | B54: 25426.38027 | C54: 1344 | D54: 0.0055 | E54: 11.65375762 | F54: 26782.03402
A55: 2010-04-01 | B55: 26782.03402 | C55: 1344 | D55: 0.0055 | E55: 12.27509893 | F55: 28138.30912
A56: 2010-05-01 | B56: 28138.30912 | C56: 1344 | D56: 0.0055 | E56: 12.89672501 | F56: 29495.20585
A57: 2010-06-01 | B57: 29495.20585 | C57: 1344 | D57: 0.0055 | E57: 13.51863601 | F57: 30852.72448
A58: 2010-07-01 | B58: 30852.72448 | C58: 1350.73 | D58: 0.0089 | E58: 22.88243732 | F58: 32226.33692
A59: 2010-08-01 | B59: 32226.33692 | C59: 1225.94 | D59: 0.0089 | E59: 23.90119988 | F59: 33476.17812
A60: 2010-09-01 | B60: 33476.17812 | C60: 1326.01 | D60: 0.0089 | E60: 24.82816544 | F60: 34827.01629
A61: 2010-10-01 | B61: 34827.01629 | C61: 1330 | D61: 0.0089 | E61: 25.83003708 | F61: 36182.84632
A62: 2010-11-01 | B62: 36182.84632 | C62: 1330 | D62: 0.0089 | E62: 26.83561102 | F62: 37539.68193
A63: 2010-12-01 | B63: 37539.68193 | C63: 1330 | D63: 0.0089 | E63: 27.84193077 | F63: 38897.52386
A64: 2011-01-01 | B64: 38897.52386 | C64: 1330 | D64: 0.0089 | E64: 28.84899687 | F64: 40256.37286
A65: 2011-02-01 | B65: 40256.37286 | C65: 1330 | D65: 0.0089 | E65: 29.85680987 | F65: 41616.22967
A66: 2011-03-01 | B66: 41616.22967 | C66: 1330 | D66: 0.0089 | E66: 30.86537034 | F66: 42977.09504
A67: 2011-04-01 | B67: 42977.09504 | C67: 1330 | D67: 0.0089 | E67: 31.87467882 | F67: 44338.96972
A68: 2011-05-01 | B68: 44338.96972 | C68: 1330 | E68: 0 | F68: 45668.96972
A69: 2011-06-01 | B69: 45668.96972 | C69: 0 | E69: 0 | F69: 45668.96972
A70: 2011-07-01 | B70: 45668.96972 | C70: 0 | E70: 0 | F70: 45668.96972
A71: 2011-08-01 | B71: 45668.96972 | C71: 0 | E71: 0 | F71: 45668.96972
A72: 2011-09-01 | B72: 45668.96972 | C72: 0 | E72: 0 | F72: 45668.96972
A73: 2011-10-01 | B73: 45668.96972 | C73: 0 | E73: 0 | F73: 45668.96972
A74: 2011-11-01 | B74: 45668.96972 | C74: 0 | E74: 0 | F74: 45668.96972
A75: 2011-12-01 | B75: 45668.96972 | C75: 0 | E75: 0 | F75: 45668.96972
A76: 2012-01-01 | B76: 45668.96972 | C76: 0 | E76: 0 | F76: 45668.96972
A77: 2012-02-01 | B77: 45668.96972 | C77: 0 | E77: 0 | F77: 45668.96972
A78: 2012-03-01 | B78: 45668.96972 | C78: 0 | E78: 0 | F78: 45668.96972
A79: 2012-04-01 | B79: 45668.96972 | C79: 0 | E79: 0 | F79: 45668.96972
A80: 2012-05-01 | B80: 45668.96972 | C80: 0 | E80: 0 | F80: 45668.96972
C81: =SUM(C4:C80) -> 44580.48 | E81: =SUM(E4:E80) -> 1088.48972

Sheet 8. Smart Meter Rate Adder
B1: Sheet 8 Applied for Smart Meter Rate Adder
B4: Description | C4: Amount
B5: Revenue Requirement - 2006 | C5: ='4. Smart Meter Rev Req'!E55 -> 0
B6: Revenue Requirement - 2007 | C6: ='4. Smart Meter Rev Req'!H55 -> 0
B7: Revenue Requirement - 2008 | C7: ='4. Smart Meter Rev Req'!K55 -> 386.1350155
B8: Revenue Requirement - 2009 | C8: ='4. Smart Meter Rev Req'!N55 -> 37007.82209
B9: Revenue Requirement - 2010 | C9: ='4. Smart Meter Rev Req'!Q55 -> 69192.1271
B10: Revenue Requirement - 2011 | C10: ='4. Smart Meter Rev Req'!T55 -> 77449.60203
B11: Total Revenue Requirement | C11: =SUM(C5:C10) -> 184035.6862
B13: Smart Meter Rate Adder Collected | C13: =-'7. Funding Adder Collected'!C81 -> -44580.48
B14: Carrying Cost / Interest | C14: =-'7. Funding Adder Collected'!E81 -> -1088.48972
B16: Proposed Smart Meter Recovery | C16: =SUM(C11:C14) -> 138366.7165
B18: 2011 Expected Metered Customers | C18: 1275 | D18: Does not include GS >50kW (No Expenditures incurred - Not Mandated yet)
B20: Proposed Smart Meter Rate Adder | C20: =IF(C18<>0,C16/C18/12,0) -> 9.043576243 | D20: Starting May 1, 2011
